Workbook

Sheet Rekapitulace stavby
A1: Export Komplet | AZ1: VZ | BA1: 2.0 | BB1: ZAMOK | BT1: False | BU1: False | BV1: {21436dea-8f0b-455a-9641-d06a7067f1c1}
BS2: 0,01 | BT2: 21
BS3: 0,01 | BT3: 15
D4: REKAPITULACE STAVBY | AS4: v --- níže se nacházejí doplnkové a pomocné údaje k sestavám --- v | BE4: Návod na vyplnění | BS4: 0,001
D5: Kód: | K5: 2021-064 | BE5: Měnit lze pouze buňky se žlutým podbarvením! 1) v Rekapitulaci stavby vyplňte údaje o Uchazeči (přenesou se do ostatních sestav i v jiných listech) 2) na vybraných listech vyplňte v sestavě Soupis prací ceny u položek | BS5: 0,01
D6: Stavba: | K6: Chrást - Bezděčín, vodovodní přivaděč | BS6: 0,01
D7: KSO: | AK7: CC-CZ: | BS7: 0,01
D8: Místo: | AK8: Datum: | AN8: 26. 1. 2022 | BS8: 0,01
BS9: 0,01
D10: Zadavatel: | AK10: IČ: | BS10: 0,01
E11: Vodovody a kanalizace Mladá Boleslav a.s. | AK11: DIČ: | BS11: 0,01
BS12: 0,01
D13: Uchazeč: | AK13: IČ: | AN13: Vyplň údaj | BS13: 0,01
E14: Vyplň údaj | AK14: DIČ: | AN14: Vyplň údaj | BS14: 0,01
BS15: False
D16: Projektant: | AK16: IČ: | BS16: False
E17: VEDU VODU s.r.o. | AK17: DIČ: | BS17: True
BS18: 0,01
D19: Zpracovatel: | AK19: IČ: | BS19: 0,01
E20: ing.Evžen Kozák | AK20: DIČ: | BS20: False
D22: Poznámka:
E23: Soupis prací je sestaven s využitím Cenové soustavy ÚRS. Položky, které pochází z této cenové soustavy, jsou ve sloupci 'Cenová soustava' označeny popisem 'CS ÚRS' a úrovní příslušného kalendářního pololetí. Veškeré další informace vymezující popis a podmínky použití těchto položek z Cenové soustavy, které nejsou uvedeny přímo v soupisu prací, jsou neomezeně dálkově k dispozici na webu podminky.urs.cz.
D26: Cena bez DPH | AK26: =ROUND(AG54,2) -> 0
L28: Sazba daně | W28: Základ daně | AK28: Výše daně
D29: DPH | F29: základní | L29: 0.21 | W29: =ROUND(AZ54, 2) -> 0 | AK29: =ROUND(AV54, 2) -> 0
F30: snížená | L30: 0.15 | W30: =ROUND(BA54, 2) -> 0 | AK30: =ROUND(AW54, 2) -> 0
F31: zákl. přenesená | L31: 0.21 | W31: =ROUND(BB54, 2) -> 0 | AK31: 0
F32: sníž. přenesená | L32: 0.15 | W32: =ROUND(BC54, 2) -> 0 | AK32: 0
F33: nulová | L33: 0 | W33: =ROUND(BD54, 2) -> 0 | AK33: 0
D35: Cena s DPH | T35: v | X35: CZK | AK35: =SUM(AK26:AK33) -> 0
C42: REKAPITULACE OBJEKTŮ STAVBY A SOUPISŮ PRACÍ
C44: Kód: | L44: =K5 -> 2021-064
C45: Stavba: | L45: =K6 -> Chrást - Bezděčín, vodovodní přivaděč
C47: Místo: | L47: =IF(K8="","",K8) ->  | AI47: Datum: | AM47: =IF(AN8= "","",AN8) -> 26. 1. 2022
C49: Zadavatel: | L49: =IF(E11= "","",E11) -> Vodovody a kanalizace Mladá Boleslav a.s. | AI49: Projektant: | AM49: =IF(E17="","",E17) -> VEDU VODU s.r.o. | AS49: Informatívní údaje z listů zakázek
C50: Uchazeč: | L50: =IF(E14= "Vyplň údaj","",E14) ->  | AI50: Zpracovatel: | AM50: =IF(E20="","",E20) -> ing.Evžen Kozák
C52: Kód | I52: Popis | AG52: Cena bez DPH [CZK] | AN52: Cena s DPH [CZK] | AQ52: Typ | AS52: z toho Ostat. náklady [CZK] | AT52: DPH [CZK] | AU52: Normohodiny [h] | AV52: DPH základní [CZK] | AW52: DPH snížená [CZK] | AX52: DPH základní přenesená [CZK] | AY52: DPH snížená přenesená [CZK] | AZ52: Základna DPH základní | BA52: Základna DPH snížená | BB52: Základna DPH zákl. přenesená | BC52: Základna DPH sníž. přenesená | BD52: Základna DPH nulová
C54: Náklady stavby celkem | AG54: =ROUND(AG55,2) -> 0 | AN54: =SUM(AG54,AT54) -> 0 | AS54: =ROUND(AS55,2) -> 0 | AT54: =ROUND(SUM(AV54:AW54),2) -> 0 | AU54: =ROUND(AU55,5) -> 0 | AV54: =ROUND(AZ54*L29,2) -> 0 | AW54: =ROUND(BA54*L30,2) -> 0 | AX54: =ROUND(BB54*L29,2) -> 0 | AY54: =ROUND(BC54*L30,2) -> 0 | AZ54: =ROUND(AZ55,2) -> 0 | BA54: =ROUND(BA55,2) -> 0 | BB54: =ROUND(BB55,2) -> 0 | BC54: =ROUND(BC55,2) -> 0 | BD54: =ROUND(BD55,2) -> 0 | BS54: D | BT54: 0 | BV54: IMPORT | BW54: {21436dea-8f0b-455a-9641-d06a7067f1c1} | BX54: {00000000-0000-0000-0000-000000000000}
A55: / | D55: 2021-064 | J55: Chrást - Bezděčín, vodovodní přivaděč | AG55: ='2021-064 - Chrást - Bezdě...'!J28 -> 0 | AN55: =SUM(AG55,AT55) -> 0 | AQ55: STA | AS55: 0 | AT55: =ROUND(SUM(AV55:AW55),2) -> 0 | AU55: ='2021-064 - Chrást - Bezdě...'!P86 -> 0 | AV55: ='2021-064 - Chrást - Bezdě...'!J31 -> 0 | AW55: ='2021-064 - Chrást - Bezdě...'!J32 -> 0 | AX55: ='2021-064 - Chrást - Bezdě...'!J33 -> 0 | AY55: ='2021-064 - Chrást - Bezdě...'!J34 -> 0 | AZ55: ='2021-064 - Chrást - Bezdě...'!F31 -> 0 | BA55: ='2021-064 - Chrást - Bezdě...'!F32 -> 0 | BB55: ='2021-064 - Chrást - Bezdě...'!F33 -> 0 | BC55: ='2021-064 - Chrást - Bezdě...'!F34 -> 0 | BD55: ='2021-064 - Chrást - Bezdě...'!F35 -> 0 | BT55: 1 | BU55: ###NOINSERT### | BV55: IMPORT | BW55: {21436dea-8f0b-455a-9641-d06a7067f1c1} | BX55: {00000000-0000-0000-0000-000000000000}

Sheet 2021-064 - Chrást - Bezdě...
AT2: {21436dea-8f0b-455a-9641-d06a7067f1c1}
AT3: 2
D4: KRYCÍ LIST SOUPISU PRACÍ | M4: v --- níže se nacházejí doplnkové a pomocné údaje k sestavám --- v | AT4: False
D6: Stavba:
E7: Chrást - Bezděčín, vodovodní přivaděč
D9: KSO: | I9: CC-CZ:
D10: Místo: | I10: Datum: | J10: ='Rekapitulace stavby'!AN8 -> 26. 1. 2022
D12: Zadavatel: | I12: IČ:
E13: Vodovody a kanalizace Mladá Boleslav a.s. | I13: DIČ:
D15: Uchazeč: | I15: IČ: | J15: ='Rekapitulace stavby'!AN13 -> Vyplň údaj
E16: ='Rekapitulace stavby'!E14 -> Vyplň údaj | I16: DIČ: | J16: ='Rekapitulace stavby'!AN14 -> Vyplň údaj
D18: Projektant: | I18: IČ:
E19: VEDU VODU s.r.o. | I19: DIČ:
D21: Zpracovatel: | I21: IČ:
E22: ing.Evžen Kozák | I22: DIČ:
D24: Poznámka:
E25: Soupis prací je sestaven s využitím Cenové soustavy ÚRS. Položky, které pochází z této cenové soustavy, jsou ve sloupci 'Cenová soustava' označeny popisem 'CS ÚRS' a úrovní příslušného kalendářního pololetí. Veškeré další informace vymezující popis a podmínky použití těchto položek z Cenové soustavy, které nejsou uvedeny přímo v soupisu prací, jsou neomezeně dálkově k dispozici na webu podminky.urs.cz.
D28: Cena bez DPH | J28: =ROUND(J86, 2) -> 0
F30: Základ daně | I30: Sazba daně | J30: Výše daně
D31: DPH | E31: základní | F31: =ROUND((SUM(BE86:BE281)), 2) -> 0 | I31: 0.21 | J31: =ROUND(((SUM(BE86:BE281))*I31), 2) -> 0
E32: snížená | F32: =ROUND((SUM(BF86:BF281)), 2) -> 0 | I32: 0.15 | J32: =ROUND(((SUM(BF86:BF281))*I32), 2) -> 0
E33: zákl. přenesená | F33: =ROUND((SUM(BG86:BG281)), 2) -> 0 | I33: 0.21 | J33: =0 -> 0
E34: sníž. přenesená | F34: =ROUND((SUM(BH86:BH281)), 2) -> 0 | I34: 0.15 | J34: =0 -> 0
E35: nulová | F35: =ROUND((SUM(BI86:BI281)), 2) -> 0 | I35: 0 | J35: =0 -> 0
D37: Cena s DPH | G37: v | H37: CZK | J37: =SUM(J28:J35) -> 0
C43: REKAPITULACE ČLENĚNÍ SOUPISU PRACÍ
C45: Stavba:
E46: =E7 -> Chrást - Bezděčín, vodovodní přivaděč
C48: Místo: | F48: =F10 ->  | I48: Datum: | J48: =IF(J10="","",J10) -> 26. 1. 2022
C50: Zadavatel: | F50: =E13 -> Vodovody a kanalizace Mladá Boleslav a.s. | I50: Projektant: | J50: =E19 -> VEDU VODU s.r.o.
C51: Uchazeč: | F51: =IF(E16="","",E16) -> Vyplň údaj | I51: Zpracovatel: | J51: =E22 -> ing.Evžen Kozák
C53: Kód dílu - Popis | J53: Cena celkem [CZK]
C55: Náklady stavby celkem | J55: =J86 -> 0 | AU55: -1
D56: HSV - Práce a dodávky HSV | J56: =J87 -> 0
D57: 1 - Zemní práce | J57: =J88 -> 0
D58: 2 - Zakládání | J58: =J157 -> 0
D59: 4 - Vodorovné konstrukce | J59: =J160 -> 0
D60: 5 - Komunikace pozemní | J60: =J163 -> 0
D61: 8 - Trubní vedení | J61: =J196 -> 0
D62: 9 - Ostatní konstrukce a práce, bourání | J62: =J237 -> 0
D63: 998 - Přesun hmot | J63: =J249 -> 0
D64: VRN - Vedlejší a ostatní rozpočtové náklady | J64: =J261 -> 0
D65: VRN1 - Průzkumné, geodetické a projektové práce | J65: =J262 -> 0
D66: VRN3 - Zařízení staveniště | J66: =J267 -> 0
D67: VRN4 - Inženýrská činnost | J67: =J275 -> 0
D68: VRN9 - Ostatní náklady | J68: =J280 -> 0
C75: SOUPIS PRACÍ
C77: Stavba:
E78: =E7 -> Chrást - Bezděčín, vodovodní přivaděč
C80: Místo: | F80: =F10 ->  | I80: Datum: | J80: =IF(J10="","",J10) -> 26. 1. 2022
C82: Zadavatel: | F82: =E13 -> Vodovody a kanalizace Mladá Boleslav a.s. | I82: Projektant: | J82: =E19 -> VEDU VODU s.r.o.
C83: Uchazeč: | F83: =IF(E16="","",E16) -> Vyplň údaj | I83: Zpracovatel: | J83: =E22 -> ing.Evžen Kozák
C85: PČ | D85: Typ | E85: Kód | F85: Popis | G85: MJ | H85: Množství | I85: J.cena [CZK] | J85: Cena celkem [CZK] | K85: Cenová soustava | N85: DPH | O85: J. Nh [h] | P85: Nh celkem [h] | Q85: J. hmotnost [t] | R85: Hmotnost celkem [t] | S85: J. suť [t] | T85: Suť Celkem [t]
C86: Náklady soupisu celkem | J86: =BK86 -> 0 | P86: =P87+P261 -> 0 | R86: =R87+R261 -> 1497.409783 | T86: =T87+T261 -> 156.91461 | AT86: D | AU86: -1 | BK86: =BK87+BK261 -> 0
D87: D | E87: HSV | F87: Práce a dodávky HSV | J87: =BK87 -> 0 | P87: =P88+P157+P160+P163+P196+P237+P249 -> 0 | R87: =R88+R157+R160+R163+R196+R237+R249 -> 1497.409783 | T87: =T88+T157+T160+T163+T196+T237+T249 -> 156.91461 | AR87: 1 | AT87: D | AU87: 0 | AY87: ROZPOCET | BK87: =BK88+BK157+BK160+BK163+BK196+BK237+BK249 -> 0
D88: D | E88: 1 | F88: Zemní práce | J88: =BK88 -> 0 | P88: =SUM(P89:P156) -> 0 | R88: =SUM(R89:R156) -> 2.5715447 | T88: =SUM(T89:T156) -> 156.526 | AR88: 1 | AT88: D | AU88: 1 | AY88: ROZPOCET | BK88: =SUM(BK89:BK156) -> 0
C89: 1 | D89: K | E89: 113106171 | F89: Rozebrání dlažeb a dílců vozovek a ploch s přemístěním hmot na skládku na vzdálenost do 3 m nebo s naložením na dopravní prostředek, s jakoukoliv výplní spár ručně ze zámkové dlažby s ložem z kameniva | G89: m2 | H89: 99 | J89: =ROUND(I89*H89,2) -> 0 | K89: CS ÚRS 2022 01 | N89: základní | P89: =O89*H89 -> 0 | Q89: 0 | R89: =Q89*H89 -> 0 | S89: 0.295 | T89: =S89*H89 -> 29.205 | AR89: 4 | AT89: K | AU89: 2 | AY89: ROZPOCET | BE89: =IF(N89="základní",J89,0) -> 0 | BF89: =IF(N89="snížená",J89,0) -> 0 | BG89: =IF(N89="zákl. přenesená",J89,0) -> 0 | BH89: =IF(N89="sníž. přenesená",J89,0) -> 0 | BI89: =IF(N89="nulová",J89,0) -> 0 | BJ89: 1 | BK89: =ROUND(I89*H89,2) -> 0 | BL89: 4 | BM89: 711825139
D90: Online PSC | F90: https://podminky.urs.cz/item/CS_URS_2022_01/113106171 | AT90: Online PSC | AU90: 2
D91: VV | F91: 7,0+92,0 "- provizorní zadláždění překopů" | H91: 99 | AT91: VV | AU91: 2 | AV91: 2 | AW91: True | AX91: 1 | AY91: ROZPOCET
C92: 2 | D92: K | E92: 113107111 | F92: Odstranění podkladů nebo krytů ručně s přemístěním hmot na skládku na vzdálenost do 3 m nebo s naložením na dopravní prostředek z kameniva těženého, o tl. vrstvy do 100 mm | G92: m2 | H92: 99 | J92: =ROUND(I92*H92,2) -> 0 | K92: CS ÚRS 2022 01 | N92: základní | P92: =O92*H92 -> 0 | Q92: 0 | R92: =Q92*H92 -> 0 | S92: 0.18 | T92: =S92*H92 -> 17.82 | AR92: 4 | AT92: K | AU92: 2 | AY92: ROZPOCET | BE92: =IF(N92="základní",J92,0) -> 0 | BF92: =IF(N92="snížená",J92,0) -> 0 | BG92: =IF(N92="zákl. přenesená",J92,0) -> 0 | BH92: =IF(N92="sníž. přenesená",J92,0) -> 0 | BI92: =IF(N92="nulová",J92,0) -> 0 | BJ92: 1 | BK92: =ROUND(I92*H92,2) -> 0 | BL92: 4 | BM92: -1933070957
D93: Online PSC | F93: https://podminky.urs.cz/item/CS_URS_2022_01/113107111 | AT93: Online PSC | AU93: 2
D94: VV | F94: 7,0+92,0 "- provizorní zadláždění překopů" | H94: 99 | AT94: VV | AU94: 2 | AV94: 2 | AW94: True | AX94: 1 | AY94: ROZPOCET
C95: 3 | D95: K | E95: 113107163 | F95: Odstranění podkladů nebo krytů strojně plochy jednotlivě přes 50 m2 do 200 m2 s přemístěním hmot na skládku na vzdálenost do 20 m nebo s naložením na dopravní prostředek z kameniva hrubého drceného, o tl. vrstvy přes 200 do 300 mm | G95: m2 | H95: 99 | J95: =ROUND(I95*H95,2) -> 0 | K95: CS ÚRS 2022 01 | N95: základní | P95: =O95*H95 -> 0 | Q95: 0 | R95: =Q95*H95 -> 0 | S95: 0.44 | T95: =S95*H95 -> 43.56 | AR95: 4 | AT95: K | AU95: 2 | AY95: ROZPOCET | BE95: =IF(N95="základní",J95,0) -> 0 | BF95: =IF(N95="snížená",J95,0) -> 0 | BG95: =IF(N95="zákl. přenesená",J95,0) -> 0 | BH95: =IF(N95="sníž. přenesená",J95,0) -> 0 | BI95: =IF(N95="nulová",J95,0) -> 0 | BJ95: 1 | BK95: =ROUND(I95*H95,2) -> 0 | BL95: 4 | BM95: 540616914
D96: Online PSC | F96: https://podminky.urs.cz/item/CS_URS_2022_01/113107163 | AT96: Online PSC | AU96: 2
D97: VV | F97: 7,0+92,0 | H97: 99 | AT97: VV | AU97: 2 | AV97: 2 | AW97: True | AX97: 1 | AY97: ROZPOCET
C98: 4 | D98: K | E98: 113154122 | F98: Frézování živičného podkladu nebo krytu s naložením na dopravní prostředek plochy do 500 m2 bez překážek v trase pruhu šířky přes 0,5 m do 1 m, tloušťky vrstvy 40 mm | G98: m2 | H98: 345.5 | J98: =ROUND(I98*H98,2) -> 0 | K98: CS ÚRS 2022 01 | N98: základní | P98: =O98*H98 -> 0 | Q98: 4e-05 | R98: =Q98*H98 -> 0.01382 | S98: 0.092 | T98: =S98*H98 -> 31.786 | AR98: 4 | AT98: K | AU98: 2 | AY98: ROZPOCET | BE98: =IF(N98="základní",J98,0) -> 0 | BF98: =IF(N98="snížená",J98,0) -> 0 | BG98: =IF(N98="zákl. přenesená",J98,0) -> 0 | BH98: =IF(N98="sníž. přenesená",J98,0) -> 0 | BI98: =IF(N98="nulová",J98,0) -> 0 | BJ98: 1 | BK98: =ROUND(I98*H98,2) -> 0 | BL98: 4 | BM98: 1184622148
D99: Online PSC | F99: https://podminky.urs.cz/item/CS_URS_2022_01/113154122 | AT99: Online PSC | AU99: 2
D100: VV | F100: 47,0+298,50 | H100: 345.5 | AT100: VV | AU100: 2 | AV100: 2 | AW100: True | AX100: 1 | AY100: ROZPOCET
C101: 5 | D101: K | E101: 113154123 | F101: Frézování živičného podkladu nebo krytu s naložením na dopravní prostředek plochy do 500 m2 bez překážek v trase pruhu šířky přes 0,5 m do 1 m, tloušťky vrstvy 50 mm | G101: m2 | H101: 99 | J101: =ROUND(I101*H101,2) -> 0 | K101: CS ÚRS 2022 01 | N101: základní | P101: =O101*H101 -> 0 | Q101: 5e-05 | R101: =Q101*H101 -> 0.00495 | S101: 0.115 | T101: =S101*H101 -> 11.385 | AR101: 4 | AT101: K | AU101: 2 | AY101: ROZPOCET | BE101: =IF(N101="základní",J101,0) -> 0 | BF101: =IF(N101="snížená",J101,0) -> 0 | BG101: =IF(N101="zákl. přenesená",J101,0) -> 0 | BH101: =IF(N101="sníž. přenesená",J101,0) -> 0 | BI101: =IF(N101="nulová",J101,0) -> 0 | BJ101: 1 | BK101: =ROUND(I101*H101,2) -> 0 | BL101: 4 | BM101: -1707085131
D102: Online PSC | F102: https://podminky.urs.cz/item/CS_URS_2022_01/113154123 | AT102: Online PSC | AU102: 2
D103: VV | F103: 7,0+92,0 | H103: 99 | AT103: VV | AU103: 2 | AV103: 2 | AW103: True | AX103: 1 | AY103: ROZPOCET
C104: 6 | D104: K | E104: 113154124 | F104: Frézování živičného podkladu nebo krytu s naložením na dopravní prostředek plochy do 500 m2 bez překážek v trase pruhu šířky přes 0,5 m do 1 m, tloušťky vrstvy 100 mm | G104: m2 | H104: 99 | J104: =ROUND(I104*H104,2) -> 0 | K104: CS ÚRS 2022 01 | N104: základní | P104: =O104*H104 -> 0 | Q104: 9e-05 | R104: =Q104*H104 -> 0.00891 | S104: 0.23 | T104: =S104*H104 -> 22.77 | AR104: 4 | AT104: K | AU104: 2 | AY104: ROZPOCET | BE104: =IF(N104="základní",J104,0) -> 0 | BF104: =IF(N104="snížená",J104,0) -> 0 | BG104: =IF(N104="zákl. přenesená",J104,0) -> 0 | BH104: =IF(N104="sníž. přenesená",J104,0) -> 0 | BI104: =IF(N104="nulová",J104,0) -> 0 | BJ104: 1 | BK104: =ROUND(I104*H104,2) -> 0 | BL104: 4 | BM104: -1634111098
D105: Online PSC | F105: https://podminky.urs.cz/item/CS_URS_2022_01/113154124 | AT105: Online PSC | AU105: 2
D106: VV | F106: 7,0+92,0 | H106: 99 | AT106: VV | AU106: 2 | AV106: 2 | AW106: True | AX106: 1 | AY106: ROZPOCET
C107: 7 | D107: K | E107: 115101201 | F107: Čerpání vody na dopravní výšku do 10 m průměrný přítok do 500 l/min | G107: hod | H107: 102 | J107: =ROUND(I107*H107,2) -> 0 | N107: základní | P107: =O107*H107 -> 0 | Q107: 0 | R107: =Q107*H107 -> 0 | S107: 0 | T107: =S107*H107 -> 0 | AR107: 4 | AT107: K | AU107: 2 | AY107: ROZPOCET | BE107: =IF(N107="základní",J107,0) -> 0 | BF107: =IF(N107="snížená",J107,0) -> 0 | BG107: =IF(N107="zákl. přenesená",J107,0) -> 0 | BH107: =IF(N107="sníž. přenesená",J107,0) -> 0 | BI107: =IF(N107="nulová",J107,0) -> 0 | BJ107: 1 | BK107: =ROUND(I107*H107,2) -> 0 | BL107: 4 | BM107: 544953034
D108: VV | F108: 4,25*24 | H108: 102 | AT108: VV | AU108: 2 | AV108: 2 | AW108: True | AX108: 1 | AY108: ROZPOCET
C109: 8 | D109: K | E109: 115101301 | F109: Pohotovost čerpací soupravy pro dopravní výšku do 10 m přítok do 500 l/min | G109: den | H109: 4.25 | J109: =ROUND(I109*H109,2) -> 0 | N109: základní | P109: =O109*H109 -> 0 | Q109: 0 | R109: =Q109*H109 -> 0 | S109: 0 | T109: =S109*H109 -> 0 | AR109: 4 | AT109: K | AU109: 2 | AY109: ROZPOCET | BE109: =IF(N109="základní",J109,0) -> 0 | BF109: =IF(N109="snížená",J109,0) -> 0 | BG109: =IF(N109="zákl. přenesená",J109,0) -> 0 | BH109: =IF(N109="sníž. přenesená",J109,0) -> 0 | BI109: =IF(N109="nulová",J109,0) -> 0 | BJ109: 1 | BK109: =ROUND(I109*H109,2) -> 0 | BL109: 4 | BM109: -2135159125
C110: 9 | D110: K | E110: 119001405 | F110: Dočasné zajištění podzemního potrubí nebo vedení ve výkopišti ve stavu i poloze, ve kterých byla na začátku zemních prací a to s podepřením, vzepřením nebo vyvěšením, případně s ochranným bedněním, se zřízením a odstraněním zajišťovací konstrukce, s opotřebením hmot potrubí plastového, jmenovité světlosti DN do 200 mm | G110: m | H110: 1 | J110: =ROUND(I110*H110,2) -> 0 | K110: CS ÚRS 2022 01 | N110: základní | P110: =O110*H110 -> 0 | Q110: 0.0369 | R110: =Q110*H110 -> 0.0369 | S110: 0 | T110: =S110*H110 -> 0 | AR110: 4 | AT110: K | AU110: 2 | AY110: ROZPOCET | BE110: =IF(N110="základní",J110,0) -> 0 | BF110: =IF(N110="snížená",J110,0) -> 0 | BG110: =IF(N110="zákl. přenesená",J110,0) -> 0 | BH110: =IF(N110="sníž. přenesená",J110,0) -> 0 | BI110: =IF(N110="nulová",J110,0) -> 0 | BJ110: 1 | BK110: =ROUND(I110*H110,2) -> 0 | BL110: 4 | BM110: -123960617
D111: Online PSC | F111: https://podminky.urs.cz/item/CS_URS_2022_01/119001405 | AT111: Online PSC | AU111: 2
C112: 10 | D112: K | E112: 119001421 | F112: Dočasné zajištění kabelů - 3 kabely | G112: m | H112: 9 | J112: =ROUND(I112*H112,2) -> 0 | N112: základní | P112: =O112*H112 -> 0 | Q112: 0.0369043 | R112: =Q112*H112 -> 0.3321387 | S112: 0 | T112: =S112*H112 -> 0 | AR112: 4 | AT112: K | AU112: 2 | AY112: ROZPOCET | BE112: =IF(N112="základní",J112,0) -> 0 | BF112: =IF(N112="snížená",J112,0) -> 0 | BG112: =IF(N112="zákl. přenesená",J112,0) -> 0 | BH112: =IF(N112="sníž. přenesená",J112,0) -> 0 | BI112: =IF(N112="nulová",J112,0) -> 0 | BJ112: 1 | BK112: =ROUND(I112*H112,2) -> 0 | BL112: 4 | BM112: 1298247395
C113: 11 | D113: K | E113: 120001101 | F113: Příplatek za ztížení vykopávky v blízkosti podzemního vedení | G113: m3 | H113: 54 | J113: =ROUND(I113*H113,2) -> 0 | N113: základní | P113: =O113*H113 -> 0 | Q113: 0 | R113: =Q113*H113 -> 0 | S113: 0 | T113: =S113*H113 -> 0 | AR113: 4 | AT113: K | AU113: 2 | AY113: ROZPOCET | BE113: =IF(N113="základní",J113,0) -> 0 | BF113: =IF(N113="snížená",J113,0) -> 0 | BG113: =IF(N113="zákl. přenesená",J113,0) -> 0 | BH113: =IF(N113="sníž. přenesená",J113,0) -> 0 | BI113: =IF(N113="nulová",J113,0) -> 0 | BJ113: 1 | BK113: =ROUND(I113*H113,2) -> 0 | BL113: 4 | BM113: 1689378954
D114: VV | F114: 1,2*1,5*3,0*10 | H114: 54 | AT114: VV | AU114: 2 | AV114: 2 | AW114: True | AX114: 1 | AY114: ROZPOCET
C115: 12 | D115: K | E115: 132254206 | F115: Hloubení zapažených rýh šířky přes 800 do 2 000 mm strojně s urovnáním dna do předepsaného profilu a spádu v hornině třídy těžitelnosti I skupiny 3 přes 1 000 do 5 000 m3 | G115: m3 | H115: 1961.444 | J115: =ROUND(I115*H115,2) -> 0 | K115: CS ÚRS 2020 01 | N115: základní | P115: =O115*H115 -> 0 | Q115: 0 | R115: =Q115*H115 -> 0 | S115: 0 | T115: =S115*H115 -> 0 | AR115: 4 | AT115: K | AU115: 2 | AY115: ROZPOCET | BE115: =IF(N115="základní",J115,0) -> 0 | BF115: =IF(N115="snížená",J115,0) -> 0 | BG115: =IF(N115="zákl. přenesená",J115,0) -> 0 | BH115: =IF(N115="sníž. přenesená",J115,0) -> 0 | BI115: =IF(N115="nulová",J115,0) -> 0 | BJ115: 1 | BK115: =ROUND(I115*H115,2) -> 0 | BL115: 4 | BM115: -165169254
D116: VV | F116: 2249,8 "celková kubatura získána SW z podélného profilu" | H116: 2249.8 | AT116: VV | AU116: 2 | AV116: 2 | AW116: True | AX116: 0 | AY116: ROZPOCET
D117: VV | F117: -(0,5*15,1+0,37*10,4+0,44*11,9+0,36*7,0+0,78*64,6+0,25*16,5+0,45*63,3+0,61*128,2+0,87*68,9)*1,2 "odpočet tř těž.II skup.5-odměřeno z PP geologie" | H117: -288.356 | AT117: VV | AU117: 2 | AV117: 2 | AW117: True | AX117: 0 | AY117: ROZPOCET
D118: VV | F118: Součet | H118: 1961.444 | AT118: VV | AU118: 2 | AV118: 4 | AW118: True | AX118: 1 | AY118: ROZPOCET
C119: 13 | D119: K | E119: 132454206 | F119: Hloubení zapažených rýh šířky přes 800 do 2 000 mm strojně s urovnáním dna do předepsaného profilu a spádu v hornině třídy těžitelnosti II skupiny 5 přes 1 000 do 5 000 m3 | G119: m3 | H119: 288.356 | J119: =ROUND(I119*H119,2) -> 0 | K119: CS ÚRS 2020 02 | N119: základní | P119: =O119*H119 -> 0 | Q119: 0 | R119: =Q119*H119 -> 0 | S119: 0 | T119: =S119*H119 -> 0 | AR119: 4 | AT119: K | AU119: 2 | AY119: ROZPOCET | BE119: =IF(N119="základní",J119,0) -> 0 | BF119: =IF(N119="snížená",J119,0) -> 0 | BG119: =IF(N119="zákl. přenesená",J119,0) -> 0 | BH119: =IF(N119="sníž. přenesená",J119,0) -> 0 | BI119: =IF(N119="nulová",J119,0) -> 0 | BJ119: 1 | BK119: =ROUND(I119*H119,2) -> 0 | BL119: 4 | BM119: 1166555515
D120: VV | F120: (0,5*15,1+0,37*10,4+0,44*11,9+0,36*7,0+0,78*64,6+0,25*16,5+0,45*63,3+0,61*128,2+0,87*68,9)*1,2 "odměřeno z PP geologie" | H120: 288.356 | AT120: VV | AU120: 2 | AV120: 2 | AW120: True | AX120: 1 | AY120: ROZPOCET
C121: 14 | D121: K | E121: 151811131 | F121: Zřízení pažicích boxů pro pažení a rozepření stěn rýh podzemního vedení hloubka výkopu do 4 m, šířka do 1,2 m | G121: m2 | H121: 3749.7 | J121: =ROUND(I121*H121,2) -> 0 | K121: CS ÚRS 2019 01 | N121: základní | P121: =O121*H121 -> 0 | Q121: 0.00058 | R121: =Q121*H121 -> 2.174826 | S121: 0 | T121: =S121*H121 -> 0 | AR121: 4 | AT121: K | AU121: 2 | AY121: ROZPOCET | BE121: =IF(N121="základní",J121,0) -> 0 | BF121: =IF(N121="snížená",J121,0) -> 0 | BG121: =IF(N121="zákl. přenesená",J121,0) -> 0 | BH121: =IF(N121="sníž. přenesená",J121,0) -> 0 | BI121: =IF(N121="nulová",J121,0) -> 0 | BJ121: 1 | BK121: =ROUND(I121*H121,2) -> 0 | BL121: 4 | BM121: -1539578164
D122: VV | F122: 3700,8+48,9 "množství získáno SW z podélného profilu" | H122: 3749.7 | AT122: VV | AU122: 2 | AV122: 2 | AW122: True | AX122: 1 | AY122: ROZPOCET
C123: 15 | D123: K | E123: 151811231 | F123: Odstranění pažicích boxů pro pažení a rozepření stěn rýh podzemního vedení hloubka výkopu do 4 m, šířka do 1,2 m | G123: m2 | H123: 3749.7 | J123: =ROUND(I123*H123,2) -> 0 | K123: CS ÚRS 2019 01 | N123: základní | P123: =O123*H123 -> 0 | Q123: 0 | R123: =Q123*H123 -> 0 | S123: 0 | T123: =S123*H123 -> 0 | AR123: 4 | AT123: K | AU123: 2 | AY123: ROZPOCET | BE123: =IF(N123="základní",J123,0) -> 0 | BF123: =IF(N123="snížená",J123,0) -> 0 | BG123: =IF(N123="zákl. přenesená",J123,0) -> 0 | BH123: =IF(N123="sníž. přenesená",J123,0) -> 0 | BI123: =IF(N123="nulová",J123,0) -> 0 | BJ123: 1 | BK123: =ROUND(I123*H123,2) -> 0 | BL123: 4 | BM123: -1207668874
D124: VV | F124: 3700,8+48,9 "množství získáno SW z podélného profilu" | H124: 3749.7 | AT124: VV | AU124: 2 | AV124: 2 | AW124: True | AX124: 1 | AY124: ROZPOCET
C125: 16 | D125: K | E125: 162351104 | F125: Vodorovné přemístění výkopku nebo sypaniny po suchu na obvyklém dopravním prostředku, bez naložení výkopku, avšak se složením bez rozhrnutí z horniny třídy těžitelnosti I skupiny 1 až 3 na vzdálenost přes 500 do 1 000 m | G125: m3 | H125: 3922.888 | J125: =ROUND(I125*H125,2) -> 0 | K125: CS ÚRS 2020 01 | N125: základní | P125: =O125*H125 -> 0 | Q125: 0 | R125: =Q125*H125 -> 0 | S125: 0 | T125: =S125*H125 -> 0 | AR125: 4 | AT125: K | AU125: 2 | AY125: ROZPOCET | BE125: =IF(N125="základní",J125,0) -> 0 | BF125: =IF(N125="snížená",J125,0) -> 0 | BG125: =IF(N125="zákl. přenesená",J125,0) -> 0 | BH125: =IF(N125="sníž. přenesená",J125,0) -> 0 | BI125: =IF(N125="nulová",J125,0) -> 0 | BJ125: 1 | BK125: =ROUND(I125*H125,2) -> 0 | BL125: 4 | BM125: 1385306639
D126: VV | F126: 2249,8 "celková kubatura získána SW z podélného profilu" | H126: 2249.8 | AT126: VV | AU126: 2 | AV126: 2 | AW126: True | AX126: 0 | AY126: ROZPOCET
D127: VV | F127: -(0,5*15,1+0,37*10,4+0,44*11,9+0,36*7,0+0,78*64,6+0,25*16,5+0,45*63,3+0,61*128,2+0,87*68,9)*1,2 "odpočet tř těž.II skup.5-odměřeno z PP geologie" | H127: -288.356 | AT127: VV | AU127: 2 | AV127: 2 | AW127: True | AX127: 0 | AY127: ROZPOCET
D128: VV | F128: 1961,444 "dovoz z mezideponie na zásyp rýhy" | H128: 1961.444 | AT128: VV | AU128: 2 | AV128: 2 | AW128: True | AX128: 0 | AY128: ROZPOCET
D129: VV | F129: Součet | H129: 3922.888 | AT129: VV | AU129: 2 | AV129: 4 | AW129: True | AX129: 1 | AY129: ROZPOCET
C130: 17 | D130: K | E130: 162351124 | F130: Vodorovné přemístění výkopku nebo sypaniny po suchu na obvyklém dopravním prostředku, bez naložení výkopku, avšak se složením bez rozhrnutí z horniny třídy těžitelnosti II na vzdálenost skupiny 4 a 5 na vzdálenost přes 500 do 1 000 m | G130: m3 | H130: 576.712 | J130: =ROUND(I130*H130,2) -> 0 | K130: CS ÚRS 2020 01 | N130: základní | P130: =O130*H130 -> 0 | Q130: 0 | R130: =Q130*H130 -> 0 | S130: 0 | T130: =S130*H130 -> 0 | AR130: 4 | AT130: K | AU130: 2 | AY130: ROZPOCET | BE130: =IF(N130="základní",J130,0) -> 0 | BF130: =IF(N130="snížená",J130,0) -> 0 | BG130: =IF(N130="zákl. přenesená",J130,0) -> 0 | BH130: =IF(N130="sníž. přenesená",J130,0) -> 0 | BI130: =IF(N130="nulová",J130,0) -> 0 | BJ130: 1 | BK130: =ROUND(I130*H130,2) -> 0 | BL130: 4 | BM130: 1211025635
D131: VV | F131: (0,5*15,1+0,37*10,4+0,44*11,9+0,36*7,0+0,78*64,6+0,25*16,5+0,45*63,3+0,61*128,2+0,87*68,9)*1,2 "odměřeno z PP geologie" | H131: 288.356 | AT131: VV | AU131: 2 | AV131: 2 | AW131: True | AX131: 0 | AY131: ROZPOCET
D132: VV | F132: 288,356 "dovoz z mezideponie na zásyp rýhy" | H132: 288.356 | AT132: VV | AU132: 2 | AV132: 2 | AW132: True | AX132: 0 | AY132: ROZPOCET
D133: VV | F133: Součet | H133: 576.712 | AT133: VV | AU133: 2 | AV133: 4 | AW133: True | AX133: 0 | AY133: ROZPOCET
D134: VV | F134: 576,712 | H134: 576.712 | AT134: VV | AU134: 2 | AV134: 2 | AW134: True | AX134: 1 | AY134: ROZPOCET
C135: 18 | D135: K | E135: 167151111 | F135: Nakládání, skládání a překládání neulehlého výkopku nebo sypaniny strojně nakládání, množství přes 100 m3, z hornin třídy těžitelnosti I, skupiny 1 až 3 | G135: m3 | H135: 4499.6 | J135: =ROUND(I135*H135,2) -> 0 | K135: CS ÚRS 2020 01 | N135: základní | P135: =O135*H135 -> 0 | Q135: 0 | R135: =Q135*H135 -> 0 | S135: 0 | T135: =S135*H135 -> 0 | AR135: 4 | AT135: K | AU135: 2 | AY135: ROZPOCET | BE135: =IF(N135="základní",J135,0) -> 0 | BF135: =IF(N135="snížená",J135,0) -> 0 | BG135: =IF(N135="zákl. přenesená",J135,0) -> 0 | BH135: =IF(N135="sníž. přenesená",J135,0) -> 0 | BI135: =IF(N135="nulová",J135,0) -> 0 | BJ135: 1 | BK135: =ROUND(I135*H135,2) -> 0 | BL135: 4 | BM135: 1972149378
D136: VV | F136: 2249,8 "celková kubatura získána SW z podélného profilu" | H136: 2249.8 | AT136: VV | AU136: 2 | AV136: 2 | AW136: True | AX136: 0 | AY136: ROZPOCET
D137: VV | F137: -(0,5*15,1+0,37*10,4+0,44*11,9+0,36*7,0+0,78*64,6+0,25*16,5+0,45*63,3+0,61*128,2+0,87*68,9)*1,2 "odpočet tř těž.II skup.5-odměřeno z PP geologie" | H137: -288.356 | AT137: VV | AU137: 2 | AV137: 2 | AW137: True | AX137: 0 | AY137: ROZPOCET
D138: VV | F138: 1961,444 "dovoz z mezideponie na zásyp rýhy" | H138: 1961.444 | AT138: VV | AU138: 2 | AV138: 2 | AW138: True | AX138: 0 | AY138: ROZPOCET
D139: VV | F139: (0,5*15,1+0,37*10,4+0,44*11,9+0,36*7,0+0,78*64,6+0,25*16,5+0,45*63,3+0,61*128,2+0,87*68,9)*1,2 "odměřeno z PP geologie" | H139: 288.356 | AT139: VV | AU139: 2 | AV139: 2 | AW139: True | AX139: 0 | AY139: ROZPOCET
D140: VV | F140: 288,356 "dovoz z mezideponie na zásyp rýhy" | H140: 288.356 | AT140: VV | AU140: 2 | AV140: 2 | AW140: True | AX140: 0 | AY140: ROZPOCET
D141: VV | F141: Součet | H141: 4499.6 | AT141: VV | AU141: 2 | AV141: 4 | AW141: True | AX141: 1 | AY141: ROZPOCET
C142: 19 | D142: K | E142: 174101101 | F142: Zásyp zhutněný jam šachet rýh nebo kolem objektů+nákup vhodného zásypového materiálu | G142: m3 | H142: 2199.432 | J142: =ROUND(I142*H142,2) -> 0 | N142: základní | P142: =O142*H142 -> 0 | Q142: 0 | R142: =Q142*H142 -> 0 | S142: 0 | T142: =S142*H142 -> 0 | AR142: 4 | AT142: K | AU142: 2 | AY142: ROZPOCET | BE142: =IF(N142="základní",J142,0) -> 0 | BF142: =IF(N142="snížená",J142,0) -> 0 | BG142: =IF(N142="zákl. přenesená",J142,0) -> 0 | BH142: =IF(N142="sníž. přenesená",J142,0) -> 0 | BI142: =IF(N142="nulová",J142,0) -> 0 | BJ142: 1 | BK142: =ROUND(I142*H142,2) -> 0 | BL142: 4 | BM142: 1682663434
D143: VV | F143: 2249,8 "celková kubatura získána SW z podélného profilu" | H143: 2249.8 | AT143: VV | AU143: 2 | AV143: 2 | AW143: True | AX143: 0 | AY143: ROZPOCET
D144: VV | F144: -3,14*0,125*0,125*1026,6 "objem potrubí" | H144: -50.368 | AT144: VV | AU144: 2 | AV144: 2 | AW144: True | AX144: 0 | AY144: ROZPOCET
D145: VV | F145: Součet | H145: 2199.432 | AT145: VV | AU145: 2 | AV145: 4 | AW145: True | AX145: 1 | AY145: ROZPOCET
D146: VV | F146: "přebytečný výkopek 50,368 m3 ponechán na stavbě pro násyp pod zastávku BUS a cyklostezku" | AT146: VV | AU146: 2 | AV146: 1 | AW146: True | AX146: 0 | AY146: ROZPOCET
C147: 20 | D147: K | E147: 121151125 | F147: Sejmutí ornice strojně při souvislé ploše přes 500 m2, tl. vrstvy přes 250 do 300 mm | G147: m2 | H147: 10266 | J147: =ROUND(I147*H147,2) -> 0 | K147: CS ÚRS 2022 01 | N147: základní | P147: =O147*H147 -> 0 | Q147: 0 | R147: =Q147*H147 -> 0 | S147: 0 | T147: =S147*H147 -> 0 | AR147: 4 | AT147: K | AU147: 2 | AY147: ROZPOCET | BE147: =IF(N147="základní",J147,0) -> 0 | BF147: =IF(N147="snížená",J147,0) -> 0 | BG147: =IF(N147="zákl. přenesená",J147,0) -> 0 | BH147: =IF(N147="sníž. přenesená",J147,0) -> 0 | BI147: =IF(N147="nulová",J147,0) -> 0 | BJ147: 1 | BK147: =ROUND(I147*H147,2) -> 0 | BL147: 4 | BM147: 1575958043
D148: Online PSC | F148: https://podminky.urs.cz/item/CS_URS_2022_01/121151125 | AT148: Online PSC | AU148: 2
D149: VV | F149: 1026,6*10,0 | H149: 10266 | AT149: VV | AU149: 2 | AV149: 2 | AW149: True | AX149: 1 | AY149: ROZPOCET
C150: 21 | D150: K | E150: 181351115 | F150: Rozprostření a urovnání ornice v rovině nebo ve svahu sklonu do 1:5 strojně při souvislé ploše přes 500 m2, tl. vrstvy přes 250 do 300 mm | G150: m2 | H150: 5133 | J150: =ROUND(I150*H150,2) -> 0 | K150: CS ÚRS 2022 01 | N150: základní | P150: =O150*H150 -> 0 | Q150: 0 | R150: =Q150*H150 -> 0 | S150: 0 | T150: =S150*H150 -> 0 | AR150: 4 | AT150: K | AU150: 2 | AY150: ROZPOCET | BE150: =IF(N150="základní",J150,0) -> 0 | BF150: =IF(N150="snížená",J150,0) -> 0 | BG150: =IF(N150="zákl. přenesená",J150,0) -> 0 | BH150: =IF(N150="sníž. přenesená",J150,0) -> 0 | BI150: =IF(N150="nulová",J150,0) -> 0 | BJ150: 1 | BK150: =ROUND(I150*H150,2) -> 0 | BL150: 4 | BM150: -1635860479
D151: Online PSC | F151: https://podminky.urs.cz/item/CS_URS_2022_01/181351115 | AT151: Online PSC | AU151: 2
D152: VV | F152: 1026,6*5,0 "rozprostření na 1/2 plochy manip.pruhu-zbývající objem použit při výstavbě cyklostezky" | H152: 5133 | AT152: VV | AU152: 2 | AV152: 2 | AW152: True | AX152: 1 | AY152: ROZPOCET
C153: 22 | D153: K | E153: 997006001 | F153: Úprava stavebního odpadu třídění na jednotlivé druhy | G153: t | H153: 4949.56 | J153: =ROUND(I153*H153,2) -> 0 | N153: základní | P153: =O153*H153 -> 0 | Q153: 0 | R153: =Q153*H153 -> 0 | S153: 0 | T153: =S153*H153 -> 0 | AR153: 4 | AT153: K | AU153: 2 | AY153: ROZPOCET | BE153: =IF(N153="základní",J153,0) -> 0 | BF153: =IF(N153="snížená",J153,0) -> 0 | BG153: =IF(N153="zákl. přenesená",J153,0) -> 0 | BH153: =IF(N153="sníž. přenesená",J153,0) -> 0 | BI153: =IF(N153="nulová",J153,0) -> 0 | BJ153: 1 | BK153: =ROUND(I153*H153,2) -> 0 | BL153: 4 | BM153: 715321678
D154: VV | F154: 2249,8 "celková kubatura získána SW z podélného profilu" | H154: 2249.8 | AT154: VV | AU154: 2 | AV154: 2 | AW154: True | AX154: 0 | AY154: ROZPOCET
D155: VV | F155: 2249,800*2,2 "přepočet na tuny" | H155: 4949.56 | AT155: VV | AU155: 2 | AV155: 2 | AW155: True | AX155: 1 | AY155: ROZPOCET
D156: VV | F156: "lože a obsyp potrubí frakce 0-4 mm, zásyp rýhy frakce 4-125 mm" | AT156: VV | AU156: 2 | AV156: 1 | AW156: True | AX156: 0 | AY156: ROZPOCET
D157: D | E157: 2 | F157: Zakládání | J157: =BK157 -> 0 | P157: =SUM(P158:P159) -> 0 | R157: =SUM(R158:R159) -> 10.15353 | T157: =SUM(T158:T159) -> 0 | AR157: 1 | AT157: D | AU157: 1 | AY157: ROZPOCET | BK157: =SUM(BK158:BK159) -> 0
C158: 23 | D158: K | E158: 275313611 | F158: Základy z betonu prostého patky a bloky z betonu kamenem neprokládaného tř. C 16/20 | G158: m3 | H158: 4.5 | J158: =ROUND(I158*H158,2) -> 0 | K158: CS ÚRS 2016 01 | N158: základní | P158: =O158*H158 -> 0 | Q158: 2.25634 | R158: =Q158*H158 -> 10.15353 | S158: 0 | T158: =S158*H158 -> 0 | AR158: 4 | AT158: K | AU158: 2 | AY158: ROZPOCET | BE158: =IF(N158="základní",J158,0) -> 0 | BF158: =IF(N158="snížená",J158,0) -> 0 | BG158: =IF(N158="zákl. přenesená",J158,0) -> 0 | BH158: =IF(N158="sníž. přenesená",J158,0) -> 0 | BI158: =IF(N158="nulová",J158,0) -> 0 | BJ158: 1 | BK158: =ROUND(I158*H158,2) -> 0 | BL158: 4 | BM158: -1609639136
D159: VV | F159: 1,0*0,75*0,75*8 "opěrné bloky" | H159: 4.5 | AT159: VV | AU159: 2 | AV159: 2 | AW159: True | AX159: 1 | AY159: ROZPOCET
D160: D | E160: 4 | F160: Vodorovné konstrukce | J160: =BK160 -> 0 | P160: =SUM(P161:P162) -> 0 | R160: =SUM(R161:R162) -> 1418.795993 | T160: =SUM(T161:T162) -> 0 | AR160: 1 | AT160: D | AU160: 1 | AY160: ROZPOCET | BK160: =SUM(BK161:BK162) -> 0
C161: 24 | D161: K | E161: 451572111 | F161: Lože pod potrubí otevřený výkop z kameniva drobného těženého | G161: m3 | H161: 750.38 | J161: =ROUND(I161*H161,2) -> 0 | N161: základní | P161: =O161*H161 -> 0 | Q161: 1.89077 | R161: =Q161*H161 -> 1418.795993 | S161: 0 | T161: =S161*H161 -> 0 | AR161: 4 | AT161: K | AU161: 2 | AY161: ROZPOCET | BE161: =IF(N161="základní",J161,0) -> 0 | BF161: =IF(N161="snížená",J161,0) -> 0 | BG161: =IF(N161="zákl. přenesená",J161,0) -> 0 | BH161: =IF(N161="sníž. přenesená",J161,0) -> 0 | BI161: =IF(N161="nulová",J161,0) -> 0 | BJ161: 1 | BK161: =ROUND(I161*H161,2) -> 0 | BL161: 4 | BM161: 1792610123
D162: VV | F162: 1026,6*(1,2*0,65-3,14*0,125*0,125) "lože a obsyp potrubí DN 200" | H162: 750.38 | AT162: VV | AU162: 2 | AV162: 2 | AW162: True | AX162: 1 | AY162: ROZPOCET
D163: D | E163: 5 | F163: Komunikace pozemní | J163: =BK163 -> 0 | P163: =SUM(P164:P195) -> 0 | R163: =SUM(R164:R195) -> 27.9056 | T163: =SUM(T164:T195) -> 0 | AR163: 1 | AT163: D | AU163: 1 | AY163: ROZPOCET | BK163: =SUM(BK164:BK195) -> 0
C164: 25 | D164: K | E164: 564801011 | F164: Podklad ze štěrkodrti ŠD s rozprostřením a zhutněním plochy jednotlivě do 100 m2, po zhutnění tl. 30 mm | G164: m2 | H164: 99 | J164: =ROUND(I164*H164,2) -> 0 | K164: CS ÚRS 2022 01 | N164: základní | P164: =O164*H164 -> 0 | Q164: 0 | R164: =Q164*H164 -> 0 | S164: 0 | T164: =S164*H164 -> 0 | AR164: 4 | AT164: K | AU164: 2 | AY164: ROZPOCET | BE164: =IF(N164="základní",J164,0) -> 0 | BF164: =IF(N164="snížená",J164,0) -> 0 | BG164: =IF(N164="zákl. přenesená",J164,0) -> 0 | BH164: =IF(N164="sníž. přenesená",J164,0) -> 0 | BI164: =IF(N164="nulová",J164,0) -> 0 | BJ164: 1 | BK164: =ROUND(I164*H164,2) -> 0 | BL164: 4 | BM164: -387138915
D165: Online PSC | F165: https://podminky.urs.cz/item/CS_URS_2022_01/564801011 | AT165: Online PSC | AU165: 2
D166: VV | F166: 7,0+92,0 "- provizorní zadláždění překopů - dosyp pro výškové vyrovnání" | H166: 99 | AT166: VV | AU166: 2 | AV166: 2 | AW166: True | AX166: 1 | AY166: ROZPOCET
C167: 26 | D167: K | E167: 564851011 | F167: Podklad ze štěrkodrti ŠD s rozprostřením a zhutněním plochy jednotlivě do 100 m2, po zhutnění tl. 150 mm | G167: m2 | H167: 207.9 | J167: =ROUND(I167*H167,2) -> 0 | K167: CS ÚRS 2022 01 | N167: základní | P167: =O167*H167 -> 0 | Q167: 0 | R167: =Q167*H167 -> 0 | S167: 0 | T167: =S167*H167 -> 0 | AR167: 4 | AT167: K | AU167: 2 | AY167: ROZPOCET | BE167: =IF(N167="základní",J167,0) -> 0 | BF167: =IF(N167="snížená",J167,0) -> 0 | BG167: =IF(N167="zákl. přenesená",J167,0) -> 0 | BH167: =IF(N167="sníž. přenesená",J167,0) -> 0 | BI167: =IF(N167="nulová",J167,0) -> 0 | BJ167: 1 | BK167: =ROUND(I167*H167,2) -> 0 | BL167: 4 | BM167: -2124731941
D168: Online PSC | F168: https://podminky.urs.cz/item/CS_URS_2022_01/564851011 | AT168: Online PSC | AU168: 2
D169: VV | F169: 2*99,0*1,05 | H169: 207.9 | AT169: VV | AU169: 2 | AV169: 2 | AW169: True | AX169: 1 | AY169: ROZPOCET
C170: 27 | D170: K | E170: 5648510R1 | F170: Podklad ze štěrkodrti ŠD 32-63 s rozprostřením a zhutněním plochy jednotlivě do 100 m2, po zhutnění tl. 150 mm | G170: m2 | H170: 103.95 | J170: =ROUND(I170*H170,2) -> 0 | N170: základní | P170: =O170*H170 -> 0 | Q170: 0 | R170: =Q170*H170 -> 0 | S170: 0 | T170: =S170*H170 -> 0 | AR170: 4 | AT170: K | AU170: 2 | AY170: ROZPOCET | BE170: =IF(N170="základní",J170,0) -> 0 | BF170: =IF(N170="snížená",J170,0) -> 0 | BG170: =IF(N170="zákl. přenesená",J170,0) -> 0 | BH170: =IF(N170="sníž. přenesená",J170,0) -> 0 | BI170: =IF(N170="nulová",J170,0) -> 0 | BJ170: 1 | BK170: =ROUND(I170*H170,2) -> 0 | BL170: 4 | BM170: -1041381346
D171: VV | F171: 99,0*1,05 | H171: 103.95 | AT171: VV | AU171: 2 | AV171: 2 | AW171: True | AX171: 1 | AY171: ROZPOCET
C172: 28 | D172: K | E172: 565135121 | F172: Asfaltový beton vrstva podkladní ACP 16 (obalované kamenivo střednězrnné - OKS) s rozprostřením a zhutněním v pruhu šířky přes 3 m, po zhutnění tl. 50 mm | G172: m2 | H172: 99 | J172: =ROUND(I172*H172,2) -> 0 | K172: CS ÚRS 2022 01 | N172: základní | P172: =O172*H172 -> 0 | Q172: 0 | R172: =Q172*H172 -> 0 | S172: 0 | T172: =S172*H172 -> 0 | AR172: 4 | AT172: K | AU172: 2 | AY172: ROZPOCET | BE172: =IF(N172="základní",J172,0) -> 0 | BF172: =IF(N172="snížená",J172,0) -> 0 | BG172: =IF(N172="zákl. přenesená",J172,0) -> 0 | BH172: =IF(N172="sníž. přenesená",J172,0) -> 0 | BI172: =IF(N172="nulová",J172,0) -> 0 | BJ172: 1 | BK172: =ROUND(I172*H172,2) -> 0 | BL172: 4 | BM172: 1399058109
D173: Online PSC | F173: https://podminky.urs.cz/item/CS_URS_2022_01/565135121 | AT173: Online PSC | AU173: 2
D174: VV | F174: 7,0+92,0 | H174: 99 | AT174: VV | AU174: 2 | AV174: 2 | AW174: True | AX174: 1 | AY174: ROZPOCET
C175: 29 | D175: K | E175: 569851111 | F175: Zpevnění krajnic nebo komunikací pro pěší s rozprostřením a zhutněním, po zhutnění štěrkodrtí tl. 150 mm | G175: m2 | H175: 69 | J175: =ROUND(I175*H175,2) -> 0 | K175: CS ÚRS 2022 01 | N175: základní | P175: =O175*H175 -> 0 | Q175: 0.345 | R175: =Q175*H175 -> 23.805 | S175: 0 | T175: =S175*H175 -> 0 | AR175: 4 | AT175: K | AU175: 2 | AY175: ROZPOCET | BE175: =IF(N175="základní",J175,0) -> 0 | BF175: =IF(N175="snížená",J175,0) -> 0 | BG175: =IF(N175="zákl. přenesená",J175,0) -> 0 | BH175: =IF(N175="sníž. přenesená",J175,0) -> 0 | BI175: =IF(N175="nulová",J175,0) -> 0 | BJ175: 1 | BK175: =ROUND(I175*H175,2) -> 0 | BL175: 4 | BM175: -1141229437
D176: Online PSC | F176: https://podminky.urs.cz/item/CS_URS_2022_01/569851111 | AT176: Online PSC | AU176: 2
D177: VV | F177: 0,750*92,0 | H177: 69 | AT177: VV | AU177: 2 | AV177: 2 | AW177: True | AX177: 1 | AY177: ROZPOCET
C178: 30 | D178: K | E178: 573191111 | F178: Postřik infiltrační kationaktivní emulzí v množství 1,00 kg/m2 | G178: m2 | H178: 99 | J178: =ROUND(I178*H178,2) -> 0 | K178: CS ÚRS 2022 01 | N178: základní | P178: =O178*H178 -> 0 | Q178: 0 | R178: =Q178*H178 -> 0 | S178: 0 | T178: =S178*H178 -> 0 | AR178: 4 | AT178: K | AU178: 2 | AY178: ROZPOCET | BE178: =IF(N178="základní",J178,0) -> 0 | BF178: =IF(N178="snížená",J178,0) -> 0 | BG178: =IF(N178="zákl. přenesená",J178,0) -> 0 | BH178: =IF(N178="sníž. přenesená",J178,0) -> 0 | BI178: =IF(N178="nulová",J178,0) -> 0 | BJ178: 1 | BK178: =ROUND(I178*H178,2) -> 0 | BL178: 4 | BM178: 714078706
D179: Online PSC | F179: https://podminky.urs.cz/item/CS_URS_2022_01/573191111 | AT179: Online PSC | AU179: 2
D180: VV | F180: 7,0+92,0 | H180: 99 | AT180: VV | AU180: 2 | AV180: 2 | AW180: True | AX180: 1 | AY180: ROZPOCET
C181: 31 | D181: K | E181: 573231106 | F181: Postřik spojovací PS bez posypu kamenivem ze silniční emulze, v množství 0,30 kg/m2 | G181: m2 | H181: 444.5 | J181: =ROUND(I181*H181,2) -> 0 | K181: CS ÚRS 2022 01 | N181: základní | P181: =O181*H181 -> 0 | Q181: 0 | R181: =Q181*H181 -> 0 | S181: 0 | T181: =S181*H181 -> 0 | AR181: 4 | AT181: K | AU181: 2 | AY181: ROZPOCET | BE181: =IF(N181="základní",J181,0) -> 0 | BF181: =IF(N181="snížená",J181,0) -> 0 | BG181: =IF(N181="zákl. přenesená",J181,0) -> 0 | BH181: =IF(N181="sníž. přenesená",J181,0) -> 0 | BI181: =IF(N181="nulová",J181,0) -> 0 | BJ181: 1 | BK181: =ROUND(I181*H181,2) -> 0 | BL181: 4 | BM181: 436938447
D182: Online PSC | F182: https://podminky.urs.cz/item/CS_URS_2022_01/573231106 | AT182: Online PSC | AU182: 2
D183: VV | F183: 345,50+99,0 | H183: 444.5 | AT183: VV | AU183: 2 | AV183: 2 | AW183: True | AX183: 1 | AY183: ROZPOCET
C184: 32 | D184: K | E184: 577134121 | F184: Asfaltový beton vrstva obrusná ACO 11 (ABS) s rozprostřením a se zhutněním z nemodifikovaného asfaltu v pruhu šířky přes 3 m tř. I, po zhutnění tl. 40 mm | G184: m2 | H184: 345.5 | J184: =ROUND(I184*H184,2) -> 0 | K184: CS ÚRS 2022 01 | N184: základní | P184: =O184*H184 -> 0 | Q184: 0 | R184: =Q184*H184 -> 0 | S184: 0 | T184: =S184*H184 -> 0 | AR184: 4 | AT184: K | AU184: 2 | AY184: ROZPOCET | BE184: =IF(N184="základní",J184,0) -> 0 | BF184: =IF(N184="snížená",J184,0) -> 0 | BG184: =IF(N184="zákl. přenesená",J184,0) -> 0 | BH184: =IF(N184="sníž. přenesená",J184,0) -> 0 | BI184: =IF(N184="nulová",J184,0) -> 0 | BJ184: 1 | BK184: =ROUND(I184*H184,2) -> 0 | BL184: 4 | BM184: -1825424304
D185: Online PSC | F185: https://podminky.urs.cz/item/CS_URS_2022_01/577134121 | AT185: Online PSC | AU185: 2
D186: VV | F186: 47,0+298,50 | H186: 345.5 | AT186: VV | AU186: 2 | AV186: 2 | AW186: True | AX186: 1 | AY186: ROZPOCET
C187: 33 | D187: K | E187: 577155122 | F187: Asfaltový beton vrstva ložní ACL 16 (ABH) s rozprostřením a zhutněním z nemodifikovaného asfaltu v pruhu šířky přes 3 m, po zhutnění tl. 60 mm | G187: m2 | H187: 99 | J187: =ROUND(I187*H187,2) -> 0 | K187: CS ÚRS 2022 01 | N187: základní | P187: =O187*H187 -> 0 | Q187: 0 | R187: =Q187*H187 -> 0 | S187: 0 | T187: =S187*H187 -> 0 | AR187: 4 | AT187: K | AU187: 2 | AY187: ROZPOCET | BE187: =IF(N187="základní",J187,0) -> 0 | BF187: =IF(N187="snížená",J187,0) -> 0 | BG187: =IF(N187="zákl. přenesená",J187,0) -> 0 | BH187: =IF(N187="sníž. přenesená",J187,0) -> 0 | BI187: =IF(N187="nulová",J187,0) -> 0 | BJ187: 1 | BK187: =ROUND(I187*H187,2) -> 0 | BL187: 4 | BM187: -1406334307
D188: Online PSC | F188: https://podminky.urs.cz/item/CS_URS_2022_01/577155122 | AT188: Online PSC | AU188: 2
D189: VV | F189: 7,0+92,0 | H189: 99 | AT189: VV | AU189: 2 | AV189: 2 | AW189: True | AX189: 1 | AY189: ROZPOCET
C190: 34 | D190: K | E190: 596212210 | F190: Kladení dlažby z betonových zámkových dlaždic pozemních komunikací ručně s ložem z kameniva těženého nebo drceného tl. do 50 mm, s vyplněním spár, s dvojitým hutněním vibrováním a se smetením přebytečného materiálu na krajnici tl. 80 mm skupiny A, pro plochy do 50 m2 | G190: m2 | H190: 14 | J190: =ROUND(I190*H190,2) -> 0 | K190: CS ÚRS 2022 01 | N190: základní | P190: =O190*H190 -> 0 | Q190: 0.11162 | R190: =Q190*H190 -> 1.56268 | S190: 0 | T190: =S190*H190 -> 0 | AR190: 4 | AT190: K | AU190: 2 | AY190: ROZPOCET | BE190: =IF(N190="základní",J190,0) -> 0 | BF190: =IF(N190="snížená",J190,0) -> 0 | BG190: =IF(N190="zákl. přenesená",J190,0) -> 0 | BH190: =IF(N190="sníž. přenesená",J190,0) -> 0 | BI190: =IF(N190="nulová",J190,0) -> 0 | BJ190: 1 | BK190: =ROUND(I190*H190,2) -> 0 | BL190: 4 | BM190: 856370771
D191: Online PSC | F191: https://podminky.urs.cz/item/CS_URS_2022_01/596212210 | AT191: Online PSC | AU191: 2
D192: VV | F192: 7,0+7,0 | H192: 14 | AT192: VV | AU192: 2 | AV192: 2 | AW192: True | AX192: 1 | AY192: ROZPOCET
C193: 35 | D193: M | E193: 59245213 | F193: dlažba zámková tvaru I 196x161x80mm přírodní | G193: m2 | H193: 14.42 | J193: =ROUND(I193*H193,2) -> 0 | K193: CS ÚRS 2022 01 | N193: základní | P193: =O193*H193 -> 0 | Q193: 0.176 | R193: =Q193*H193 -> 2.53792 | S193: 0 | T193: =S193*H193 -> 0 | AR193: 8 | AT193: M | AU193: 2 | AY193: ROZPOCET | BE193: =IF(N193="základní",J193,0) -> 0 | BF193: =IF(N193="snížená",J193,0) -> 0 | BG193: =IF(N193="zákl. přenesená",J193,0) -> 0 | BH193: =IF(N193="sníž. přenesená",J193,0) -> 0 | BI193: =IF(N193="nulová",J193,0) -> 0 | BJ193: 1 | BK193: =ROUND(I193*H193,2) -> 0 | BL193: 4 | BM193: -1621040836
D194: VV | F194: 7,0+7,0 | H194: 14 | AT194: VV | AU194: 2 | AV194: 2 | AW194: True | AX194: 1 | AY194: ROZPOCET
D195: VV | F195: 14*1,03 'Přepočtené koeficientem množství | H195: 14.42 | AT195: VV | AU195: 2 | AV195: 2 | AW195: False | AX195: 1 | AY195: ROZPOCET
D196: D | E196: 8 | F196: Trubní vedení | J196: =BK196 -> 0 | P196: =SUM(P197:P236) -> 0 | R196: =SUM(R197:R236) -> 37.913576 | T196: =SUM(T197:T236) -> 0.38861 | AR196: 1 | AT196: D | AU196: 1 | AY196: ROZPOCET | BK196: =SUM(BK197:BK236) -> 0
C197: 36 | D197: K | E197: 1000001 | F197: Zkouška průchodnosti volným předmětem vodovodního potrubí DN 200 | G197: m | H197: 1026.6 | J197: =ROUND(I197*H197,2) -> 0 | N197: základní | P197: =O197*H197 -> 0 | Q197: 0 | R197: =Q197*H197 -> 0 | S197: 0 | T197: =S197*H197 -> 0 | AR197: 4 | AT197: K | AU197: 2 | AY197: ROZPOCET | BE197: =IF(N197="základní",J197,0) -> 0 | BF197: =IF(N197="snížená",J197,0) -> 0 | BG197: =IF(N197="zákl. přenesená",J197,0) -> 0 | BH197: =IF(N197="sníž. přenesená",J197,0) -> 0 | BI197: =IF(N197="nulová",J197,0) -> 0 | BJ197: 1 | BK197: =ROUND(I197*H197,2) -> 0 | BL197: 4 | BM197: -956479541
C198: 37 | D198: K | E198: 460490001 | F198: Krytí bílou výstražnou fólií s nápisem VODOVOD z PVC šířky do 20 cm včetně pokládky | G198: m | H198: 1026.6 | J198: =ROUND(I198*H198,2) -> 0 | N198: základní | P198: =O198*H198 -> 0 | Q198: 0 | R198: =Q198*H198 -> 0 | S198: 0 | T198: =S198*H198 -> 0 | AR198: 4 | AT198: K | AU198: 2 | AY198: ROZPOCET | BE198: =IF(N198="základní",J198,0) -> 0 | BF198: =IF(N198="snížená",J198,0) -> 0 | BG198: =IF(N198="zákl. přenesená",J198,0) -> 0 | BH198: =IF(N198="sníž. přenesená",J198,0) -> 0 | BI198: =IF(N198="nulová",J198,0) -> 0 | BJ198: 1 | BK198: =ROUND(I198*H198,2) -> 0 | BL198: 4 | BM198: -869507163
C199: 38 | D199: M | E199: 341110120 | F199: kabel silový NYY-J2x4 mm2-identifikační vodič včetně pokládky | G199: m | H199: 2053.2 | J199: =ROUND(I199*H199,2) -> 0 | K199: CS ÚRS 2016 01 | N199: základní | P199: =O199*H199 -> 0 | Q199: 0.00018 | R199: =Q199*H199 -> 0.369576 | S199: 0 | T199: =S199*H199 -> 0 | AR199: 8 | AT199: M | AU199: 2 | AY199: ROZPOCET | BE199: =IF(N199="základní",J199,0) -> 0 | BF199: =IF(N199="snížená",J199,0) -> 0 | BG199: =IF(N199="zákl. přenesená",J199,0) -> 0 | BH199: =IF(N199="sníž. přenesená",J199,0) -> 0 | BI199: =IF(N199="nulová",J199,0) -> 0 | BJ199: 1 | BK199: =ROUND(I199*H199,2) -> 0 | BL199: 4 | BM199: -903959751
D200: VV | F200: 1026,6*2 "identifikační kabel" | H200: 2053.2 | AT200: VV | AU200: 2 | AV200: 2 | AW200: True | AX200: 1 | AY200: ROZPOCET
C201: 39 | D201: K | E201: 850245121 | F201: Výřez nebo výsek na potrubí z trub litinových tlakových DN 80 | G201: kus | H201: 1 | J201: =ROUND(I201*H201,2) -> 0 | K201: CS ÚRS 2016 01 | N201: základní | P201: =O201*H201 -> 0 | Q201: 0 | R201: =Q201*H201 -> 0 | S201: 0 | T201: =S201*H201 -> 0 | AR201: 4 | AT201: K | AU201: 2 | AY201: ROZPOCET | BE201: =IF(N201="základní",J201,0) -> 0 | BF201: =IF(N201="snížená",J201,0) -> 0 | BG201: =IF(N201="zákl. přenesená",J201,0) -> 0 | BH201: =IF(N201="sníž. přenesená",J201,0) -> 0 | BI201: =IF(N201="nulová",J201,0) -> 0 | BJ201: 1 | BK201: =ROUND(I201*H201,2) -> 0 | BL201: 4 | BM201: -2029213943
C202: 40 | D202: K | E202: 850315121 | F202: Výřez nebo výsek na potrubí z trub litinových tlakových nebo plastických hmot DN 150 | G202: kus | H202: 2 | J202: =ROUND(I202*H202,2) -> 0 | K202: CS ÚRS 2022 01 | N202: základní | P202: =O202*H202 -> 0 | Q202: 0 | R202: =Q202*H202 -> 0 | S202: 0 | T202: =S202*H202 -> 0 | AR202: 4 | AT202: K | AU202: 2 | AY202: ROZPOCET | BE202: =IF(N202="základní",J202,0) -> 0 | BF202: =IF(N202="snížená",J202,0) -> 0 | BG202: =IF(N202="zákl. přenesená",J202,0) -> 0 | BH202: =IF(N202="sníž. přenesená",J202,0) -> 0 | BI202: =IF(N202="nulová",J202,0) -> 0 | BJ202: 1 | BK202: =ROUND(I202*H202,2) -> 0 | BL202: 4 | BM202: -11885013
D203: Online PSC | F203: https://podminky.urs.cz/item/CS_URS_2022_01/850315121 | AT203: Online PSC | AU203: 2
C204: 41 | D204: K | E204: 851351131 | F204: Montáž potrubí z trub litinových tlakových hrdlových v otevřeném výkopu s integrovaným těsněním DN 200 | G204: m | H204: 1026.6 | J204: =ROUND(I204*H204,2) -> 0 | K204: CS ÚRS 2022 01 | N204: základní | P204: =O204*H204 -> 0 | Q204: 0 | R204: =Q204*H204 -> 0 | S204: 0 | T204: =S204*H204 -> 0 | AR204: 4 | AT204: K | AU204: 2 | AY204: ROZPOCET | BE204: =IF(N204="základní",J204,0) -> 0 | BF204: =IF(N204="snížená",J204,0) -> 0 | BG204: =IF(N204="zákl. přenesená",J204,0) -> 0 | BH204: =IF(N204="sníž. přenesená",J204,0) -> 0 | BI204: =IF(N204="nulová",J204,0) -> 0 | BJ204: 1 | BK204: =ROUND(I204*H204,2) -> 0 | BL204: 4 | BM204: 1238284917
D205: Online PSC | F205: https://podminky.urs.cz/item/CS_URS_2022_01/851351131 | AT205: Online PSC | AU205: 2
C206: 42 | D206: M | E206: 55253004 | F206: trouba vodovodní litinová hrdlová Pz dl 6m DN 200 | G206: m | H206: 1026.6 | J206: =ROUND(I206*H206,2) -> 0 | K206: CS ÚRS 2022 01 | N206: základní | P206: =O206*H206 -> 0 | Q206: 0.036 | R206: =Q206*H206 -> 36.9576 | S206: 0 | T206: =S206*H206 -> 0 | AR206: 8 | AT206: M | AU206: 2 | AY206: ROZPOCET | BE206: =IF(N206="základní",J206,0) -> 0 | BF206: =IF(N206="snížená",J206,0) -> 0 | BG206: =IF(N206="zákl. přenesená",J206,0) -> 0 | BH206: =IF(N206="sníž. přenesená",J206,0) -> 0 | BI206: =IF(N206="nulová",J206,0) -> 0 | BJ206: 1 | BK206: =ROUND(I206*H206,2) -> 0 | BL206: 4 | BM206: 345618678
C207: 43 | D207: M | E207: PAM.JSB20BA | F207: kroužek těsnící gumový STANDARD DN 200 | G207: kus | H207: 172 | J207: =ROUND(I207*H207,2) -> 0 | N207: základní | P207: =O207*H207 -> 0 | Q207: 0.0003 | R207: =Q207*H207 -> 0.0516 | S207: 0 | T207: =S207*H207 -> 0 | AR207: 8 | AT207: M | AU207: 2 | AY207: ROZPOCET | BE207: =IF(N207="základní",J207,0) -> 0 | BF207: =IF(N207="snížená",J207,0) -> 0 | BG207: =IF(N207="zákl. přenesená",J207,0) -> 0 | BH207: =IF(N207="sníž. přenesená",J207,0) -> 0 | BI207: =IF(N207="nulová",J207,0) -> 0 | BJ207: 1 | BK207: =ROUND(I207*H207,2) -> 0 | BL207: 4 | BM207: -481457872
C208: 44 | D208: M | E208: PAM.JSB20B1 | F208: Kroužek DN 200 STD, EPDM těsnicí | G208: kus | H208: 15 | J208: =ROUND(I208*H208,2) -> 0 | N208: základní | P208: =O208*H208 -> 0 | Q208: 0.0003 | R208: =Q208*H208 -> 0.0045 | S208: 0 | T208: =S208*H208 -> 0 | AR208: 8 | AT208: M | AU208: 2 | AY208: ROZPOCET | BE208: =IF(N208="základní",J208,0) -> 0 | BF208: =IF(N208="snížená",J208,0) -> 0 | BG208: =IF(N208="zákl. přenesená",J208,0) -> 0 | BH208: =IF(N208="sníž. přenesená",J208,0) -> 0 | BI208: =IF(N208="nulová",J208,0) -> 0 | BJ208: 1 | BK208: =ROUND(I208*H208,2) -> 0 | BL208: 4 | BM208: -1060619116
C209: 45 | D209: K | E209: 857312122 | F209: Montáž litinových tvarovek na potrubí litinovém tlakovém jednoosých na potrubí z trub přírubových v otevřeném výkopu, kanálu nebo v šachtě DN 150 | G209: kus | H209: 2 | J209: =ROUND(I209*H209,2) -> 0 | K209: CS ÚRS 2020 01 | N209: základní | P209: =O209*H209 -> 0 | Q209: 0.00296 | R209: =Q209*H209 -> 0.00592 | S209: 0 | T209: =S209*H209 -> 0 | AR209: 4 | AT209: K | AU209: 2 | AY209: ROZPOCET | BE209: =IF(N209="základní",J209,0) -> 0 | BF209: =IF(N209="snížená",J209,0) -> 0 | BG209: =IF(N209="zákl. přenesená",J209,0) -> 0 | BH209: =IF(N209="sníž. přenesená",J209,0) -> 0 | BI209: =IF(N209="nulová",J209,0) -> 0 | BJ209: 1 | BK209: =ROUND(I209*H209,2) -> 0 | BL209: 4 | BM209: 1490005495
C210: 46 | D210: K | E210: 857314122 | F210: Montáž litinových tvarovek na potrubí litinovém tlakovém odbočných na potrubí z trub přírubových v otevřeném výkopu, kanálu nebo v šachtě DN 150 | G210: kus | H210: 1 | J210: =ROUND(I210*H210,2) -> 0 | K210: CS ÚRS 2022 01 | N210: základní | P210: =O210*H210 -> 0 | Q210: 0.0038 | R210: =Q210*H210 -> 0.0038 | S210: 0.0337 | T210: =S210*H210 -> 0.0337 | AR210: 4 | AT210: K | AU210: 2 | AY210: ROZPOCET | BE210: =IF(N210="základní",J210,0) -> 0 | BF210: =IF(N210="snížená",J210,0) -> 0 | BG210: =IF(N210="zákl. přenesená",J210,0) -> 0 | BH210: =IF(N210="sníž. přenesená",J210,0) -> 0 | BI210: =IF(N210="nulová",J210,0) -> 0 | BJ210: 1 | BK210: =ROUND(I210*H210,2) -> 0 | BL210: 4 | BM210: 652692234
D211: Online PSC | F211: https://podminky.urs.cz/item/CS_URS_2022_01/857314122 | AT211: Online PSC | AU211: 2
C212: 47 | D212: K | E212: 857351131 | F212: Montáž litinových tvarovek na potrubí litinovém tlakovém jednoosých na potrubí z trub hrdlových v otevřeném výkopu, kanálu nebo v šachtě s integrovaným těsněním DN 200 | G212: kus | H212: 10 | J212: =ROUND(I212*H212,2) -> 0 | K212: CS ÚRS 2022 01 | N212: základní | P212: =O212*H212 -> 0 | Q212: 0 | R212: =Q212*H212 -> 0 | S212: 0.0317 | T212: =S212*H212 -> 0.317 | AR212: 4 | AT212: K | AU212: 2 | AY212: ROZPOCET | BE212: =IF(N212="základní",J212,0) -> 0 | BF212: =IF(N212="snížená",J212,0) -> 0 | BG212: =IF(N212="zákl. přenesená",J212,0) -> 0 | BH212: =IF(N212="sníž. přenesená",J212,0) -> 0 | BI212: =IF(N212="nulová",J212,0) -> 0 | BJ212: 1 | BK212: =ROUND(I212*H212,2) -> 0 | BL212: 4 | BM212: 1634718621
D213: Online PSC | F213: https://podminky.urs.cz/item/CS_URS_2022_01/857351131 | AT213: Online PSC | AU213: 2
C214: 48 | D214: K | E214: 857352122 | F214: Montáž litinových tvarovek na potrubí litinovém tlakovém jednoosých na potrubí z trub přírubových v otevřeném výkopu, kanálu nebo v šachtě DN 200 | G214: kus | H214: 1 | J214: =ROUND(I214*H214,2) -> 0 | K214: CS ÚRS 2022 01 | N214: základní | P214: =O214*H214 -> 0 | Q214: 0.00301 | R214: =Q214*H214 -> 0.00301 | S214: 0.03791 | T214: =S214*H214 -> 0.03791 | AR214: 4 | AT214: K | AU214: 2 | AY214: ROZPOCET | BE214: =IF(N214="základní",J214,0) -> 0 | BF214: =IF(N214="snížená",J214,0) -> 0 | BG214: =IF(N214="zákl. přenesená",J214,0) -> 0 | BH214: =IF(N214="sníž. přenesená",J214,0) -> 0 | BI214: =IF(N214="nulová",J214,0) -> 0 | BJ214: 1 | BK214: =ROUND(I214*H214,2) -> 0 | BL214: 4 | BM214: -1139652821
D215: Online PSC | F215: https://podminky.urs.cz/item/CS_URS_2022_01/857352122 | AT215: Online PSC | AU215: 2
C216: 49 | D216: M | E216: 55253908 | F216: koleno hrdlové z tvárné litiny,práškový epoxid tl 250µm MMK-kus DN 200-11,25° | G216: kus | H216: 1 | J216: =ROUND(I216*H216,2) -> 0 | K216: CS ÚRS 2022 01 | N216: základní | P216: =O216*H216 -> 0 | Q216: 0.0199 | R216: =Q216*H216 -> 0.0199 | S216: 0 | T216: =S216*H216 -> 0 | AR216: 8 | AT216: M | AU216: 2 | AY216: ROZPOCET | BE216: =IF(N216="základní",J216,0) -> 0 | BF216: =IF(N216="snížená",J216,0) -> 0 | BG216: =IF(N216="zákl. přenesená",J216,0) -> 0 | BH216: =IF(N216="sníž. přenesená",J216,0) -> 0 | BI216: =IF(N216="nulová",J216,0) -> 0 | BJ216: 1 | BK216: =ROUND(I216*H216,2) -> 0 | BL216: 4 | BM216: 2059558782
C217: 50 | D217: M | E217: 55253920 | F217: koleno hrdlové z tvárné litiny,práškový epoxid tl 250µm MMK-kus DN 200-22,5° | G217: kus | H217: 2 | J217: =ROUND(I217*H217,2) -> 0 | K217: CS ÚRS 2022 01 | N217: základní | P217: =O217*H217 -> 0 | Q217: 0.0213 | R217: =Q217*H217 -> 0.0426 | S217: 0 | T217: =S217*H217 -> 0 | AR217: 8 | AT217: M | AU217: 2 | AY217: ROZPOCET | BE217: =IF(N217="základní",J217,0) -> 0 | BF217: =IF(N217="snížená",J217,0) -> 0 | BG217: =IF(N217="zákl. přenesená",J217,0) -> 0 | BH217: =IF(N217="sníž. přenesená",J217,0) -> 0 | BI217: =IF(N217="nulová",J217,0) -> 0 | BJ217: 1 | BK217: =ROUND(I217*H217,2) -> 0 | BL217: 4 | BM217: 399794819
C218: 51 | D218: M | E218: 55253944 | F218: koleno hrdlové z tvárné litiny,práškový epoxid tl 250µm MMK-kus DN 200-45° | G218: kus | H218: 5 | J218: =ROUND(I218*H218,2) -> 0 | K218: CS ÚRS 2022 01 | N218: základní | P218: =O218*H218 -> 0 | Q218: 0.0241 | R218: =Q218*H218 -> 0.1205 | S218: 0 | T218: =S218*H218 -> 0 | AR218: 8 | AT218: M | AU218: 2 | AY218: ROZPOCET | BE218: =IF(N218="základní",J218,0) -> 0 | BF218: =IF(N218="snížená",J218,0) -> 0 | BG218: =IF(N218="zákl. přenesená",J218,0) -> 0 | BH218: =IF(N218="sníž. přenesená",J218,0) -> 0 | BI218: =IF(N218="nulová",J218,0) -> 0 | BJ218: 1 | BK218: =ROUND(I218*H218,2) -> 0 | BL218: 4 | BM218: -57235891
C219: 52 | D219: M | E219: 55259819 | F219: přechod přírubový tvárná litina dl 200mm DN 150/80 | G219: kus | H219: 2 | J219: =ROUND(I219*H219,2) -> 0 | K219: CS ÚRS 2020 01 | N219: základní | P219: =O219*H219 -> 0 | Q219: 0.0156 | R219: =Q219*H219 -> 0.0312 | S219: 0 | T219: =S219*H219 -> 0 | AR219: 8 | AT219: M | AU219: 2 | AY219: ROZPOCET | BE219: =IF(N219="základní",J219,0) -> 0 | BF219: =IF(N219="snížená",J219,0) -> 0 | BG219: =IF(N219="zákl. přenesená",J219,0) -> 0 | BH219: =IF(N219="sníž. přenesená",J219,0) -> 0 | BI219: =IF(N219="nulová",J219,0) -> 0 | BJ219: 1 | BK219: =ROUND(I219*H219,2) -> 0 | BL219: 4 | BM219: -1375707254
D220: VV | F220: 1,98019801980198*1,01 "Přepočtené koeficientem množství | H220: 2 | AT220: VV | AU220: 2 | AV220: 2 | AW220: True | AX220: 1 | AY220: ROZPOCET
C221: 53 | D221: M | E221: 55259826 | F221: přechod přírubový tvárná litina dl 200mm DN 200/150 | G221: kus | H221: 1 | J221: =ROUND(I221*H221,2) -> 0 | K221: CS ÚRS 2022 01 | N221: základní | P221: =O221*H221 -> 0 | Q221: 0.0235 | R221: =Q221*H221 -> 0.0235 | S221: 0 | T221: =S221*H221 -> 0 | AR221: 8 | AT221: M | AU221: 2 | AY221: ROZPOCET | BE221: =IF(N221="základní",J221,0) -> 0 | BF221: =IF(N221="snížená",J221,0) -> 0 | BG221: =IF(N221="zákl. přenesená",J221,0) -> 0 | BH221: =IF(N221="sníž. přenesená",J221,0) -> 0 | BI221: =IF(N221="nulová",J221,0) -> 0 | BJ221: 1 | BK221: =ROUND(I221*H221,2) -> 0 | BL221: 4 | BM221: -1991248153
C222: 54 | D222: M | E222: 55253595 | F222: kříž přírubový litinový PN10/16 TT-kus DN 150/150 | G222: kus | H222: 1 | J222: 0 | K222: CS ÚRS 2022 01 | N222: základní | P222: 0 | Q222: 0.0415 | R222: 0.0415 | S222: 0 | T222: 0 | AR222: 8 | AT222: M | AU222: 2 | AY222: ROZPOCET | BE222: 0 | BF222: 0 | BG222: 0 | BH222: 0 | BI222: 0 | BJ222: 1 | BK222: 0 | BL222: 4 | BM222: 1530831881
C223: 55 | D223: M | E223: 55259713 | F223: přesuvka hrdlová U tvárná litina základní povrchová ochrana včetně 2x spoj těsnící dl 165mm DN 150 | G223: kus | H223: 1 | J223: 0 | K223: CS ÚRS 2022 01 | N223: základní | P223: 0 | Q223: 0.0123 | R223: 0.0123 | S223: 0 | T223: 0 | AR223: 8 | AT223: M | AU223: 2 | AY223: ROZPOCET | BE223: 0 | BF223: 0 | BG223: 0 | BH223: 0 | BI223: 0 | BJ223: 1 | BK223: 0 | BL223: 4 | BM223: -1856603917
C224: 56 | D224: M | E224: 55253868 | F224: přechod hrdlový z tvárné litiny,práškový epoxid tl 250µm MMR-kus DN 200/150 | G224: kus | H224: 1 | J224: 0 | K224: CS ÚRS 2022 01 | N224: základní | P224: 0 | Q224: 0.0178 | R224: 0.0178 | S224: 0 | T224: 0 | AR224: 8 | AT224: M | AU224: 2 | AY224: ROZPOCET | BE224: 0 | BF224: 0 | BG224: 0 | BH224: 0 | BI224: 0 | BJ224: 1 | BK224: 0 | BL224: 4 | BM224: -1523292507
C225: 57 | D225: M | E225: 55253896 | F225: tvarovka přírubová s hrdlem z tvárné litiny,práškový epoxid tl 250µm EU-kus dl 140mm DN 200 | G225: kus | H225: 1 | J225: 0 | K225: CS ÚRS 2022 01 | N225: základní | P225: 0 | Q225: 0.0186 | R225: 0.0186 | S225: 0 | T225: 0 | AR225: 8 | AT225: M | AU225: 2 | AY225: ROZPOCET | BE225: 0 | BF225: 0 | BG225: 0 | BH225: 0 | BI225: 0 | BJ225: 1 | BK225: 0 | BL225: 4 | BM225: 1662099346
C226: 58 | D226: M | E226: 42221221 | F226: šoupě přírubové vodovodní krátká stavební dl DN 200 PN16 - DODÁVKA VaK MB | G226: kus | H226: 1 | J226: 0 | K226: CS ÚRS 2022 01 | N226: základní | P226: 0 | Q226: 0.066 | R226: 0.066 | S226: 0 | T226: 0 | AR226: 8 | AT226: M | AU226: 2 | AY226: ROZPOCET | BE226: 0 | BF226: 0 | BG226: 0 | BH226: 0 | BI226: 0 | BJ226: 1 | BK226: 0 | BL226: 4 | BM226: -891230411
C227: 59 | D227: M | E227: 42291063 | F227: souprava zemní pro šoupátka DN 200mm - DODÁVKA VaK MB | G227: kus | H227: 1 | J227: 0 | K227: CS ÚRS 2022 01 | N227: základní | P227: 0 | Q227: 0.0045 | R227: 0.0045 | S227: 0 | T227: 0 | AR227: 8 | AT227: M | AU227: 2 | AY227: ROZPOCET | BE227: 0 | BF227: 0 | BG227: 0 | BH227: 0 | BI227: 0 | BJ227: 1 | BK227: 0 | BL227: 4 | BM227: -862804929
C228: 60 | D228: K | E228: 891247113 | F228: Demontáž hydrantů podzemních DN 80 komplet-stan.1026,6 | G228: kus | H228: 1 | J228: 0 | N228: základní | P228: 0 | Q228: 0.00136 | R228: 0.00136 | S228: 0 | T228: 0 | AR228: 4 | AT228: K | AU228: 2 | AY228: ROZPOCET | BE228: 0 | BF228: 0 | BG228: 0 | BH228: 0 | BI228: 0 | BJ228: 1 | BK228: 0 | BL228: 4 | BM228: -320038060
C229: 61 | D229: K | E229: 891351112 | F229: Montáž vodovodních armatur na potrubí šoupátek nebo klapek uzavíracích v otevřeném výkopu nebo v šachtách s osazením zemní soupravy (bez poklopů) DN 200 | G229: kus | H229: 1 | J229: 0 | K229: CS ÚRS 2022 01 | N229: základní | P229: 0 | Q229: 0.00301 | R229: 0.00301 | S229: 0 | T229: 0 | AR229: 4 | AT229: K | AU229: 2 | AY229: ROZPOCET | BE229: 0 | BF229: 0 | BG229: 0 | BH229: 0 | BI229: 0 | BJ229: 1 | BK229: 0 | BL229: 4 | BM229: -2081523255
D230: Online PSC | F230: https://podminky.urs.cz/item/CS_URS_2022_01/891351112 | AT230: Online PSC | AU230: 2
C231: 62 | D231: K | E231: 892351111 | F231: Tlakové zkoušky vodou na potrubí DN 150 nebo 200 | G231: m | H231: 1026.6 | J231: =ROUND(I231*H231,2) -> 0 | K231: CS ÚRS 2022 01 | N231: základní | P231: =O231*H231 -> 0 | Q231: 0 | R231: =Q231*H231 -> 0 | S231: 0 | T231: =S231*H231 -> 0 | AR231: 4 | AT231: K | AU231: 2 | AY231: ROZPOCET | BE231: =IF(N231="základní",J231,0) -> 0 | BF231: =IF(N231="snížená",J231,0) -> 0 | BG231: =IF(N231="zákl. přenesená",J231,0) -> 0 | BH231: =IF(N231="sníž. přenesená",J231,0) -> 0 | BI231: =IF(N231="nulová",J231,0) -> 0 | BJ231: 1 | BK231: =ROUND(I231*H231,2) -> 0 | BL231: 4 | BM231: 951330464
D232: Online PSC | F232: https://podminky.urs.cz/item/CS_URS_2022_01/892351111 | AT232: Online PSC | AU232: 2
... 49 more rows

Sheet Pokyny pro vyplnění
C3: Struktura údajů, formát souboru a metodika pro zpracování
C4: Struktura
C6: Soubor je složen ze záložky Rekapitulace stavby a záložek s názvem soupisu prací pro jednotlivé objekty ve formátu XLSX. Každá ze záložek přitom obsahuje
C7: ještě samostatné sestavy vymezené orámovaním a nadpisem sestavy.
C9: Rekapitulace stavby obsahuje sestavu Rekapitulace stavby a Rekapitulace objektů stavby a soupisů prací.
D10: V sestavě Rekapitulace stavby jsou uvedeny informace identifikující předmět veřejné zakázky na stavební práce, KSO, CC-CZ, CZ-CPV, CZ-CPA a rekapitulaci
D11: celkové nabídkové ceny uchazeče.
D13: Termínem "uchazeč" (resp. zhotovitel) se myslí "účastník zadávacího řízení" ve smyslu zákona o zadávání veřejných zakázek.
D15: V sestavě Rekapitulace objektů stavby a soupisů prací je uvedena rekapitulace stavebních objektů, inženýrských objektů, provozních souborů,
D16: vedlejších a ostatních nákladů a ostatních nákladů s rekapitulací nabídkové ceny za jednotlivé soupisy prací. Na základě údaje Typ je možné
D17: identifikovat, zda se jedná o objekt nebo soupis prací pro daný objekt:
E18: STA | F18: Stavební objekt pozemní
E19: ING | F19: Stavební objekt inženýrský
E20: PRO | F20: Provozní soubor
E21: VON | F21: Vedlejší a ostatní náklady
E22: OST | F22: Ostatní
E23: Soupis | F23: Soupis prací pro daný typ objektu
C25: Soupis prací pro jednotlivé objekty obsahuje sestavy Krycí list soupisu prací, Rekapitulace členění soupisu prací, Soupis prací. Za soupis prací může být považován
C26: i objekt stavby v případě, že neobsahuje podřízenou zakázku.
D27: Krycí list soupisu obsahuje rekapitulaci informací o předmětu veřejné zakázky ze sestavy Rekapitulace stavby, informaci o zařazení objektu do KSO,
D28: CC-CZ, CZ-CPV, CZ-CPA a rekapitulaci celkové nabídkové ceny uchazeče za aktuální soupis prací.
D30: Rekapitulace členění soupisu prací obsahuje rekapitulaci soupisu prací ve všech úrovních členění soupisu tak, jak byla tato členění použita (např.
D31: stavební díly, funkční díly, případně jiné členění) s rekapitulací nabídkové ceny.
D33: Soupis prací obsahuje položky veškerých stavebních nebo montážních prací, dodávek materiálů a služeb nezbytných pro zhotovení stavebního objektu,
D34: inženýrského objektu, provozního souboru, vedlejších a ostatních nákladů.
D35: Pro položky soupisu prací se zobrazují následující informace:
E36: PČ | G36: Pořadové číslo položky v aktuálním soupisu
E37: TYP | G37: Typ položky: K - konstrukce, M - materiál, PP - plný popis, PSC - poznámka k souboru cen, P - poznámka k položce, VV - výkaz výměr
E38: Kód | G38: Kód položky
E39: Popis | G39: Zkrácený popis položky
E40: MJ | G40: Měrná jednotka položky
E41: Množství | G41: Množství v měrné jednotce
E42: J.cena | G42: Jednotková cena položky. Zadaní může obsahovat namísto J.ceny sloupce J.materiál a J.montáž, jejichž součet definuje
G43: J.cenu položky.
E44: Cena celkem | G44: Celková cena položky daná jako součin množství a j.ceny
E45: Cenová soustava | G45: Příslušnost položky do cenové soustavy
D47: Ke každé položce soupisu prací se na samostatných řádcích může zobrazovat:
E48: Plný popis položky
E49: Poznámka k souboru cen a poznámka zadavatele
E50: Výkaz výměr
D51: Pokud je k řádku výkazu výměr evidovaný údaj ve sloupci Kód, jedná se o definovaný odkaz, na který se může odvolávat výkaz výměr z jiné položky.
C52: Metodika pro zpracování
C54: Jednotlivé sestavy jsou v souboru provázány. Editovatelné pole jsou zvýrazněny žlutým podbarvením, ostatní pole neslouží k editaci a nesmí být jakkoliv
C55: modifikovány.
C57: Uchazeč je pro podání nabídky povinen vyplnit žlutě podbarvená pole:
D58: Pole Uchazeč v sestavě Rekapitulace stavby - zde uchazeč vyplní svůj název (název subjektu)
D59: Pole IČ a DIČ v sestavě Rekapitulace stavby - zde uchazeč vyplní svoje IČ a DIČ
D60: Datum v sestavě Rekapitulace stavby - zde uchazeč vyplní datum vytvoření nabídky
D61: J.cena = jednotková cena v sestavě Soupis prací o maximálním počtu desetinných míst uvedených v poli
D62: - pokud sestavy soupisů prací obsahují pole J.cena, měla by být všechna tato pole vyplněna nenulovými
D63: Poznámka - nepovinný údaj pro položku soupisu
D65: V případě, že sestavy soupisů prací neobsahují pole J.cena, potom ve všech soupisech prací obsahují pole:
D66: - J.materiál - jednotková cena materiálu
D67: - J.montáž - jednotková cena montáže
D68: Uchazeč v tomto případě by měl vyplnit všechna pole J.materiál a pole J.montáž nenulovými kladnými číslicemi. V případech, kdy položka
D69: neobsahuje žádný materiál je přípustné, aby pole J.materiál bylo vyplněno nulou. V případech, kdy položka neobsahuje žádnou montáž je přípustné,
D70: aby pole J.montáž bylo vyplněno nulou. Obě pole - J.materiál, J.Montáž u jedné položky by však neměly být vyplněny nulou.
C75: Rekapitulace stavby
C76: Název | F76: Povinný | H76: Popis | I76: Typ | J76: Max. počet
C77: atributu | F77: (A/N) | J77: znaků
C79: Kód | F79: A | H79: Kód stavby | I79: String | J79: 20
C80: Stavba | F80: A | H80: Název stavby | I80: String | J80: 120
C81: Místo | F81: N | H81: Místo stavby | I81: String | J81: 50
C82: Datum | F82: A | H82: Datum vykonaného exportu | I82: Date
C83: KSO | F83: N | H83: Klasifikace stavebního objektu | I83: String | J83: 15
C84: CC-CZ | F84: N | H84: Klasifikace stavbeních děl | I84: String | J84: 15
C85: CZ-CPV | F85: N | H85: Společný slovník pro veřejné zakázky | I85: String | J85: 20
C86: CZ-CPA | F86: N | H86: Klasifikace produkce podle činností | I86: String | J86: 20
C87: Zadavatel | F87: N | H87: Zadavatel zadaní | I87: String | J87: 50
C88: IČ | F88: N | H88: IČ zadavatele zadaní | I88: String | J88: 20
C89: DIČ | F89: N | H89: DIČ zadavatele zadaní | I89: String | J89: 20
C90: Uchazeč | F90: N | H90: Uchazeč veřejné zakázky | I90: String | J90: 50
C91: Projektant | F91: N | H91: Projektant | I91: String | J91: 50
C92: Poznámka | F92: N | H92: Poznámka k zadání | I92: String | J92: 255
C93: Sazba DPH | F93: A | H93: Rekapitulace sazeb DPH u položek soupisů | I93: eGSazbaDph
C94: Základna DPH | F94: A | H94: Základna DPH určena součtem celkové ceny z položek soupisů | I94: Double
C95: Hodnota DPH | F95: A | H95: Hodnota DPH | I95: Double
C96: Cena bez DPH | F96: A | H96: Celková cena bez DPH za celou stavbu. Sčítává se ze všech listů. | I96: Double
C97: Cena s DPH | F97: A | H97: Celková cena s DPH za celou stavbu | I97: Double
C102: Rekapitulace objektů stavby a soupisů prací
C103: Název | F103: Povinný | H103: Popis | I103: Typ | J103: Max. počet
C104: atributu | F104: (A/N) | J104: znaků
C106: Kód | F106: A | H106: Přebírá se z Rekapitulace stavby | I106: String | J106: 20
C107: Stavba | F107: A | H107: Přebírá se z Rekapitulace stavby | I107: String | J107: 120
C108: Místo | F108: N | H108: Přebírá se z Rekapitulace stavby | I108: String | J108: 50
C109: Datum | F109: A | H109: Přebírá se z Rekapitulace stavby | I109: Date
C110: Zadavatel | F110: N | H110: Přebírá se z Rekapitulace stavby | I110: String | J110: 50
C111: Projektant | F111: N | H111: Přebírá se z Rekapitulace stavby | I111: String | J111: 50
C112: Uchazeč | F112: N | H112: Přebírá se z Rekapitulace stavby | I112: String | J112: 50
C113: Kód | F113: A | H113: Kód objektu | I113: String | J113: 20
C114: Objektu, Soupis prací | F114: A | H114: Název objektu | I114: String | J114: 120
C115: Cena bez DPH | F115: A | H115: Cena bez DPH za daný objekt | I115: Double
C116: Cena s DPH | F116: A | H116: Cena spolu s DPH za daný objekt | I116: Double
C117: Typ | F117: A | H117: Typ zakázky | I117: eGTypZakazky
C122: Krycí list soupisu
C123: Název | F123: Povinný | H123: Popis | I123: Typ | J123: Max. počet
C124: atributu | F124: (A/N) | J124: znaků
C126: Stavba | F126: A | H126: Přebírá se z Rekapitulace stavby | I126: String | J126: 120
C127: Objekt | F127: A | H127: Kód a název objektu | I127: String | J127: 20 + 120
C128: Soupis | F128: A | H128: Kód a název soupisu | I128: String | J128: 20 + 120
C129: KSO | F129: N | H129: Klasifikace stavebního objektu | I129: String | J129: 15
C130: CC-CZ | F130: N | H130: Klasifikace stavbeních děl | I130: String | J130: 15
C131: CZ-CPV | F131: N | H131: Společný slovník pro veřejné zakázky | I131: String | J131: 20
C132: CZ-CPA | F132: N | H132: Klasifikace produkce podle činností | I132: String | J132: 20
C133: Místo | F133: N | H133: Přebírá se z Rekapitulace stavby | I133: String | J133: 50
C134: Zadavatel | F134: N | H134: Přebírá se z Rekapitulace stavby | I134: String | J134: 50
C135: Uchazeč | F135: N | H135: Přebírá se z Rekapitulace stavby | I135: String | J135: 50
C136: Projektant | F136: N | H136: Přebírá se z Rekapitulace stavby | I136: String | J136: 50
C137: Poznámka | F137: N | H137: Poznámka k soupisu prací | I137: String | J137: 255
C138: Sazba DPH | F138: A | H138: Rekapitulace sazeb DPH na položkách aktuálního soupisu | I138: eGSazbaDph
C139: Základna DPH | F139: A | H139: Základna DPH určena součtem celkové ceny z položek aktuálního soupisu | I139: Double
C140: Hodnota DPH | F140: A | H140: Hodnota DPH | I140: Double
C141: Cena bez DPH | F141: A | H141: Cena bez DPH za daný soupis | I141: Double
C142: Cena s DPH | F142: A | H142: Cena s DPH za daný soupis | I142: Double
C147: Rekapitulace členění soupisu prací
C148: Název | F148: Povinný | H148: Popis | I148: Typ | J148: Max. počet
C149: atributu | F149: (A/N) | J149: znaků
C151: Stavba | F151: A | H151: Přebírá se z Rekapitulace stavby | I151: String | J151: 120
C152: Objekt | F152: A | H152: Kód a název objektu, přebírá se z Krycího listu soupisu | I152: String | J152: 20 + 120
C153: Soupis | F153: A | H153: Kód a název objektu, přebírá se z Krycího listu soupisu | I153: String | J153: 20 + 120
C154: Místo | F154: N | H154: Přebírá se z Rekapitulace stavby | I154: String | J154: 50
C155: Datum | F155: A | H155: Přebírá se z Rekapitulace stavby | I155: Date
C156: Zadavatel | F156: N | H156: Přebírá se z Rekapitulace stavby | I156: String | J156: 50
C157: Projektant | F157: N | H157: Přebírá se z Rekapitulace stavby | I157: String | J157: 50
C158: Uchazeč | F158: N | H158: Přebírá se z Rekapitulace stavby | I158: String | J158: 50
C159: Kód dílu - Popis | F159: A | H159: Kód a název dílu ze soupisu | I159: String | J159: 20 + 100
C160: Cena celkem | F160: A | H160: Cena celkem za díl ze soupisu | I160: Double
C165: Soupis prací
C166: Název | F166: Povinný | H166: Popis | I166: Typ | J166: Max. počet
C167: atributu | F167: (A/N) | J167: znaků
C169: Stavba | F169: A | H169: Přebírá se z Rekapitulace stavby | I169: String | J169: 120
C170: Objekt | F170: A | H170: Kód a název objektu | I170: String | J170: 20 + 120
C171: Soupis | F171: A | H171: Přebírá se z Krycího listu soupisu | I171: String | J171: 20 + 120
C172: Místo | F172: N | H172: Přebírá se z Krycího listu soupisu | I172: String | J172: 50
C173: Datum | F173: A | H173: Přebírá se z Krycího listu soupisu | I173: Date
C174: Zadavatel | F174: N | H174: Přebírá se z Krycího listu soupisu | I174: String | J174: 50
C175: Projektant | F175: N | H175: Přebírá se z Krycího listu soupisu | I175: String | J175: 50
C176: Uchazeč | F176: N | H176: Přebírá se z Krycího listu soupisu | I176: String | J176: 50
C177: PČ | F177: A | H177: Pořadové číslo položky soupisu | I177: Long
C178: Typ | F178: A | H178: Typ položky soupisu | I178: eGTypPolozky | J178: 1
C179: Kód | F179: A | H179: Kód položky ze soupisu | I179: String | J179: 20
C180: Popis | F180: A | H180: Popis položky ze soupisu | I180: String | J180: 255
C181: MJ | F181: A | H181: Měrná jednotka položky | I181: String | J181: 10
C182: Množství | F182: A | H182: Množství položky soupisu | I182: Double
C183: J.Cena | F183: A | H183: Jednotková cena položky | I183: Double
C184: Cena celkem | F184: A | H184: Cena celkem vyčíslena jako J.Cena * Množství | I184: Double
C185: Cenová soustava | F185: N | H185: Zařazení položky do cenové soustavy | I185: String | J185: 50
C186: p | F186: N | H186: Poznámka položky ze soupisu | I186: Memo
C187: psc | F187: N | H187: Poznámka k souboru cen ze soupisu | I187: Memo
C188: pp | F188: N | H188: Plný popis položky ze soupisu | I188: Memo
C189: vv | F189: N | H189: Výkaz výměr (figura, výraz, výměra) ze soupisu | I189: Text,Text,Double | J189: 20, 150
C190: DPH | F190: A | H190: Sazba DPH pro položku | I190: eGSazbaDPH
C191: Hmotnost | F191: A | H191: Hmotnost položky ze soupisu | I191: Double
C192: Suť | F192: A | H192: Suť položky ze soupisu | I192: Double
C193: Nh | F193: N | H193: Normohodiny položky ze soupisu | I193: Double
C199: Datová věta
C200: Typ věty | F200: Hodnota | H200: Význam
C202: eGSazbaDPH | F202: základní | H202: Základní sazba DPH
F203: snížená | H203: Snížená sazba DPH
F204: nulová | H204: Nulová sazba DPH
F205: zákl. přenesená | H205: Základní sazba DPH přenesená
F206: sníž. přenesená | H206: Snížená sazba DPH přenesená
C208: eGTypZakazky | F208: STA | H208: Stavební objekt
F209: PRO | H209: Provozní soubor
F210: ING | H210: Inženýrský objekt
F211: VON | H211: Vedlejší a ostatní náklady
F212: OST | H212: Ostatní náklady
C214: eGTypPolozky | F214: 1 | H214: Položka typu HSV
F215: 2 | H215: Položka typu PSV
F216: 3 | H216: Položka typu M
F217: 4 | H217: Položka typu OST
